Workbook

Sheet Sesión de Macros

Sheet Macro 01
B2: Hola !!! | C2: =IF(HOUR(NOW())+MINUTE(NOW())/60<=12,"Buenos días …",IF(HOUR(NOW())+MINUTE(NOW())/60<19,"Buenas tardes …","Buenas noches")) -> Buenos días … | E2: Bye
B4: Dia | C4: Tienda 1 | D4: Tienda 2 | E4: Tienda 3 | F4: Tienda 4 | G4: Tienda 5 | H4: Total
B5: Lunes | C5: 2640 | D5: 2310 | E5: 2880 | F5: 2410 | G5: 2790 | H5: =SUM(C5:G5) -> 13030
B6: Martes | C6: 1000 | D6: 2990 | E6: 2820 | F6: 2660 | G6: 1310 | H6: 10780
B7: Miércoles | C7: 2070 | D7: 1710 | E7: 2030 | F7: 2370 | G7: 1360 | H7: 9540
B8: Jueves | C8: 1740 | D8: 2340 | E8: 2380 | F8: 2170 | G8: 1730 | H8: 10360
B9: Viernes | C9: 1610 | D9: 1110 | E9: 1520 | F9: 1980 | G9: 1580 | H9: 7800
B10: Sábado | C10: 1650 | D10: 1670 | E10: 2240 | F10: 2760 | G10: 2360 | H10: 10680
B11: Total | C11: =SUM(C5:C10) -> 10710 | D11: =SUM(D5:D10) -> 12130 | E11: =SUM(E5:E10) -> 13870 | F11: =SUM(F5:F10) -> 14350 | G11: =SUM(G5:G10) -> 11130
A15: Primero ubíquese en B2
A16: Primera macro: Nombre de macro: Macro01A; método abreviado: (m). Que B2 tenga tamaño de fuente: 14; Color de relleno: Agua marina, énfasis 5, oscuro 25%, Borde exterior grueso, fuente: negrita, blanco, subrayado
A18: Primero ubíquese en B2
A19: Segunda macro: Nombre: Macro01Aborrar; método abreviado: (b). Tamaño de fuente: 10; color de relleno: ninguno; Sin borde; quitar negrita, quitar subrayado;dejar en color de fuente: automático.
A21: Primero ubíquese en C2
A22: Tercera macro: Macro01C: (o): Que C2 tenga tamaño: 16, Color de relleno: Agua marina, énfasis 5, claro 40%, Borde exterior grueso
A25: Que su cursor esté en cualquier celda
A26: Cuarta macro: Macro01D: (q): Que E2 esté en negrita, borde exterior grueso, color de relleno: Blanco, fondo 1, oscuro 25%.
A28: Una mcro adicional: Macro01E: (r): Que C2 no tenga ningún tipo de formato de texto ni de número
A30: Una mcro adicional: Macro01F: (w): Que C2 tenga color de relleno verdeoliva, énfasis 3, claro 80%.
A33: Preguntas:
A34: Puede aplicar la macro Macro01A para darle el formato a la columna de los días?
A35: Puede aplicar la macro Macro01C para darle el formato a la fila de los nombres de las tiendas?
A36: Puede aplicar la macro Macro01E para darle el formato al rango C5:G10?
A37: Aplique una de estas macros a la fila de Totales
A38: Aplique una de estas macros a la columna de Totales
A41: Nota: Antes de ejecutar la macro, debe seleccionar el rango para que la macro actúe como si fuera una celda.
A42: Nota: Si no le gusta la macro aplicada en algún rango, aplique la macro Macro01D para borrarlo y aplique otro.

Sheet Macro 02
B2: NÚMERO DE CLIENTES ATENDIDOS POR DÍA | K2: NUMERO DE CLIENTES ATENDIDOS POR DIA
A3: Nombre del Operador | B3: Lunes | C3: Martes | D3: Miércoles | E3: Jueves | F3: Viernes | J3: Nombre del Operador | K3: Lunes | L3: Martes | M3: Miércoles | N3: Jueves | O3: Viernes
B17: ESTADÍSTICAS POR OPERADOR | K17: ESTADISTICAS POR OPERADOR
A18: Total de clientes atendidos | J18: Total de clientes atendidos
A19: Promedio de clientes atendidos | J19: Promedio de clientes atendidos
A20: Máximo número de clientes atendidos | J20: Máximo número de clientes atendidos
A21: Quién atendió más clientes | J21: Quién atendió más clientes
A22: Mínimo de clientes atendidos | J22: Mínimo de clientes atendidos
A23: Quién atendió menos clientes | J23: Quién atendió menos clientes

Sheet Macro 03
B2: NUMERO DE CLIENTES ATENDIDOS POR DIA
A3: Nombre del Operador | B3: Lunes | C3: Martes | D3: Miércoles | E3: Jueves | F3: Viernes
A4: ABELLAN COLODRON, FERNANDO | B4: 107 | C4: 103 | D4: 89 | E4: 55 | F4: 89
A5: ALGUERO MARTIN, RUBEN | B5: 114 | C5: 29 | D5: 113 | E5: 91 | F5: 108
A6: ALVAREZ DIEZ, CARLOS | B6: 28 | C6: 81 | D6: 43 | E6: 76 | F6: 37
A7: ANDRES BAYO, ESTHER | B7: 65 | C7: 66 | D7: 36 | E7: 36 | F7: 67
A8: BARRIO VIZAN, PEDRO | B8: 51 | C8: 75 | D8: 25 | E8: 110 | F8: 115
A9: DIAZ FERREIRA, IVAN | B9: 50 | C9: 115 | D9: 46 | E9: 52 | F9: 94
A10: GARCIA PETIT, CARLOS | B10: 67 | C10: 60 | D10: 81 | E10: 47 | F10: 95
A11: LINDE DIAZ, NATALIA | B11: 78 | C11: 105 | D11: 114 | E11: 107 | F11: 74
A12: MARTIN MARCOS, NOELIA | B12: 32 | C12: 75 | D12: 98 | E12: 51 | F12: 38
A13: RAMOS LOPEZ, PATRICIA | B13: 57 | C13: 113 | D13: 30 | E13: 86 | F13: 55
A14: TOBAR RIÑON, JOSE | B14: 118 | C14: 108 | D14: 35 | E14: 86 | F14: 110
A15: VICENTE GONZALEZ, ROBERTO | B15: 116 | C15: 119 | D15: 40 | E15: 25 | F15: 47
B17: ESTADISTICAS DIARIAS POR OPERADOR
A19: Total de clientes atendidos
A20: Promedio de clientes atendidos
A21: Màximo nùmero de clientes atendidos
A22: Mìnimo nùmero de clientes atendidos
A23: Quièn atendiò màs clientes
A24: Quièn atendiò menos clientes
A27: Grabe otra macro llamada Macro02Borrar (x) que le permita borrar el contenido de las estadísticas y dejar las columnas en su ancho estándar

Sheet Datos
A1: PARTICIPANTES AL CUARTO CONGRESO MEDIO AMBIENTAL
A2: D.N.I. | B2: APELLIDOS Y NOMBRE | C2: RESERVA | D2: IDIOMA | E2: SEDE
A3: 25900548 | B3: ABAD GIL, JORGE | C3: SI | D3: I | E3: MADRID
A4: 25175035 | B4: ABAD PARRIEGO, DAVID | C4: SI | D4: I | E4: BARCELONA
A5: 33294549 | B5: ABALDE CAMPAÑA, ANA MARIA | C5: NO | D5: E | E5: A CORUÑA
A6: 32751022 | B6: ABALO DOMINGUEZ, MARIA ISABEL | C6: NO | D6: I | E6: A CORUÑA
A7: 14309940 | B7: ABARCA MORATE, SILVIA | C7: NO | D7: I | E7: MADRID
A8: 41536839 | B8: ABBASTANTE CACERES, CLAUDIA YOLAND | C8: NO | D8: I | E8: PALMA DE MALL.
A9: 33343143 | B9: ABEL VAZQUEZ, MARIA | C9: NO | D9: I | E9: A CORUÑA
A10: 36026711 | B10: ABELLA RODRIGUEZ, JOSE ANGEL | C10: NO | D10: F | E10: A CORUÑA
A11: 10864685 | B11: ABELLAN COLODRON, FERNANDO | C11: NO | D11: E | E11: VALLADOLID
A12: 21516273 | B12: ABELLAN DIAZ, MARIA ESTHER | C12: SI | D12: I | E12: VALENCIA
A13: 2629121 | B13: ABERTURAS DEL OLMO, OLGA | C13: NO | D13: I | E13: MADRID
A14: 12776523 | B14: ABRIL GONZALEZ, SERGIO | C14: NO | D14: E | E14: VALLADOLID
A15: 53230725 | B15: ACOSTA LOPEZ, MARIA | C15: NO | D15: I | E15: MALAGA
A16: 11956603 | B16: ACOSTA VILLALOBOS, ISABEL | C16: NO | D16: I | E16: MADRID
A17: 76821651 | B17: ACUÑA GARCIA, MARIA DOLORES | C17: SI | D17: I | E17: A CORUÑA
A18: 47017285 | B18: ADANERO LOPEZ, RAQUEL | C18: NO | D18: I | E18: MADRID
A19: 43823850 | B19: AFONSO FERRANDEZ, NAYRA JOANAINA | C19: SI | D19: I | E19: LAS PALMAS G.C.
A20: 29042557 | B20: AGUADED GOMEZ, INMACULADA | C20: NO | D20: F | E20: MADRID
A21: 33330264 | B21: AGUADO YAÑEZ, ISABEL | C21: NO | D21: I | E21: A CORUÑA
A22: 46801014 | B22: AGUDO BORREGO, ALBERTO | C22: NO | D22: E | E22: BARCELONA
A23: 50440331 | B23: AGUEDA MARTIN, ROBERTO | C23: NO | D23: I | E23: MADRID
A24: 24387703 | B24: AGÜERA MAS, LAURA | C24: NO | D24: I | E24: VALENCIA
A25: 3115861 | B25: AGUILAR AGUILAR, CRISTINA | C25: SI | D25: I | E25: MADRID
A26: 29181135 | B26: AGUILAR ARREGUI, ROSA MARIA | C26: NO | D26: I | E26: VALENCIA
A27: 30797752 | B27: AGUILAR CAMACHO, M. CARMEN | C27: SI | D27: F | E27: SEVILLA
A28: 50978238 | B28: AGUILAR DELGADO, RAUL | C28: NO | D28: I | E28: MADRID
A29: 28634620 | B29: AGUILAR GIL, ROCIO REYES | C29: NO | D29: E | E29: SEVILLA
A30: 2548335 | B30: AGUILAR LOPEZ, JAVIER | C30: NO | D30: I | E30: MADRID
A31: 48809344 | B31: AGUILERA SAEZ, VANESSA Mª | C31: NO | D31: I | E31: SEVILLA
A32: 11845751 | B32: AGUILERA SUAREZ, JOSE MANUEL | C32: NO | D32: I | E32: MADRID
A33: 36110340 | B33: AGULLA LOPEZ, SANDRA | C33: NO | D33: F | E33: A CORUÑA
A34: 72038198 | B34: AJA MARDONES, MARTA | C34: SI | D34: I | E34: VALLADOLID
A35: 29185449 | B35: ALAMAR SEGOVIA, MANUEL | C35: NO | D35: I | E35: VALENCIA
A36: 44449105 | B36: ALARCON UROSA, MARIA TERESA | C36: SI | D36: E | E36: A CORUÑA
A37: 76573412 | B37: ALBA GONZALEZ, ANA BELEN | C37: NO | D37: I | E37: MADRID
A38: 40896087 | B38: ALBA LLORETA, JORGE | C38: NO | D38: F | E38: BARCELONA
A39: 28758078 | B39: ALBEA BORREGUERO, CARLOS | C39: NO | D39: I | E39: SEVILLA
A40: 24362120 | B40: ALBERO BELDA, JOSEFINA | C40: SI | D40: E | E40: VALENCIA
A41: 25423047 | B41: ALCALA PEREZ, PABLO | C41: NO | D41: F | E41: VALENCIA
A42: 44810788 | B42: ALCALDE GARCIA, BEATRIZ | C42: SI | D42: I | E42: A CORUÑA
A43: 53010609 | B43: ALCAZAR TORRES, ANGEL | C43: NO | D43: I | E43: MADRID
A44: 43116794 | B44: ALCOVER SANCHIS, ANTONI | C44: SI | D44: E | E44: PALMA DE MALL.
A45: 43514321 | B45: ALDEA SALOM, MERCEDES | C45: NO | D45: I | E45: BARCELONA
A46: 43514322 | B46: ALDEA SALOM, MONTSERRAT | C46: NO | D46: I | E46: BARCELONA
A47: 48438023 | B47: ALEIXANDRE SORIANO, Mª VANESSA | C47: NO | D47: I | E47: VALENCIA
A48: 25477452 | B48: ALFARO CID, MANUEL | C48: NO | D48: F | E48: VALENCIA
A49: 44384777 | B49: ALFARO MOLINA, ANGEL | C49: SI | D49: E | E49: MADRID
A50: 71011493 | B50: ALFONSO GARZON, MANUEL | C50: SI | D50: E | E50: VALLADOLID
A51: 51928841 | B51: ALGABA RAMIRO, JESUS MIGUEL | C51: NO | D51: I | E51: MADRID
A52: 30818225 | B52: ALGAR GONZALEZ, JULIO RAIMUNDO | C52: NO | D52: I | E52: MALAGA
A53: 70881080 | B53: ALGUERO MARTIN, RUBEN | C53: NO | D53: I | E53: VALLADOLID
A54: 48322471 | B54: ALJIBE VAREA, INMACULADA | C54: NO | D54: I | E54: VALENCIA
A55: 75747254 | B55: ALMADRO SMITH, LETICIA CARMEN | C55: NO | D55: I | E55: MADRID
A56: 50105766 | B56: ALMOGUERA GARNACHO, ANA MARIA | C56: NO | D56: E | E56: MADRID
A57: 12771990 | B57: ALMOHALLA DIEZ, RUBEN | C57: SI | D57: I | E57: VALLADOLID
A58: 25406756 | B58: ALMONACID LOPEZ, CARLOS ENRIQUE | C58: NO | D58: F | E58: VALENCIA
A59: 76927420 | B59: ALONSO BARCIA, OLALLA | C59: NO | D59: I | E59: A CORUÑA
A60: 42918410 | B60: ALONSO BARRETO, JESUS MANUEL | C60: NO | D60: E | E60: LAS PALMAS G.C.
A61: 2609768 | B61: ALONSO CASADO, ANGEL | C61: NO | D61: I | E61: MADRID
A62: 36126876 | B62: ALONSO CASTRO, CRISTINA | C62: NO | D62: I | E62: A CORUÑA
A63: 16580747 | B63: ALONSO FERNANDEZ, LUIS | C63: NO | D63: I | E63: MADRID
A64: 11817483 | B64: ALONSO LABRADOR, JESUS | C64: SI | D64: E | E64: MADRID
A65: 3439788 | B65: ALONSO MAROTO, JESUS | C65: NO | D65: I | E65: MADRID
A66: 52181840 | B66: ALONSO MARTIN, MARIA JESUS | C66: NO | D66: E | E66: MADRID
A67: 11946263 | B67: ALONSO MARTIN, VERONICA | C67: NO | D67: I | E67: VALLADOLID
A68: 7990229 | B68: ALONSO MIGUEL, MARIA CONCEPCI | C68: NO | D68: I | E68: MADRID
A69: 50102803 | B69: ALONSO RUIZ, SARA | C69: NO | D69: E | E69: MADRID
A70: 70879778 | B70: ALONSO SOTO, DANIEL | C70: NO | D70: I | E70: VALLADOLID
A71: 48287975 | B71: ALTABERT CALATAYUD, JUAN PEDRO | C71: NO | D71: I | E71: VALENCIA
A72: 32878506 | B72: ALVAREZ ALVAREZ, ALVARO | C72: SI | D72: F | E72: VALLADOLID
A73: 2905684 | B73: ALVAREZ AMIGO, JUAN ANTONIO | C73: NO | D73: I | E73: MADRID
A74: 12385492 | B74: ALVAREZ ARIAS, MARIA JOSE | C74: NO | D74: F | E74: VALLADOLID
A75: 10085682 | B75: ALVAREZ BAELO, MIGUEL ANGEL | C75: SI | D75: I | E75: A CORUÑA
A76: 34899422 | B76: ALVAREZ BARRAL, DAVID | C76: NO | D76: I | E76: A CORUÑA
A77: 9779879 | B77: ALVAREZ DIEZ, CARLOS | C77: SI | D77: E | E77: VALLADOLID
A78: 5205975 | B78: ALVAREZ GHIA, ANA | C78: NO | D78: I | E78: MADRID
A79: 51411372 | B79: ALVAREZ GONZALEZ, NOEMI ASUNCION | C79: SI | D79: I | E79: MADRID
A80: 33522700 | B80: ALVAREZ JUSTO, SUSANA | C80: NO | D80: I | E80: MADRID
A81: 7228145 | B81: ALVAREZ LOSA, CRISTINA | C81: NO | D81: I | E81: MADRID
A82: 50868541 | B82: ALVAREZ LLORENS, MERCEDES | C82: NO | D82: E | E82: MADRID
A83: 51423426 | B83: ALVAREZ MARTINEZ, RAMON | C83: SI | D83: I | E83: MADRID
A84: 44450187 | B84: ALVAREZ PEREZ, FCO.ALEJANDRO | C84: NO | D84: I | E84: A CORUÑA
A85: 44461780 | B85: ALVAREZ RODRIGUEZ, ALMUDENA | C85: SI | D85: I | E85: A CORUÑA
A86: 34986614 | B86: ALVAREZ SOMOZA, JACINTO | C86: NO | D86: I | E86: A CORUÑA
A87: 73196666 | B87: ALVIRA PERUGA, JOSE ANTONIO | C87: NO | D87: E | E87: BARCELONA
A88: 71424668 | B88: ALLER ORDAS, ROCIO | C88: NO | D88: E | E88: VALLADOLID
A89: 71263012 | B89: AMBEL GARCIA, M. ANGUSTIAS | C89: NO | D89: I | E89: VALLADOLID
A90: 53044063 | B90: AMEZCUA PEREZ, M.ARANZAZU | C90: SI | D90: I | E90: MADRID
A91: 44811927 | B91: AMIGO BARCIA, MARIA FERNANDA | C91: NO | D91: F | E91: A CORUÑA
A92: 52642814 | B92: AMIGO LOPEZ, DAVID | C92: SI | D92: I | E92: VALENCIA
A93: 51621947 | B93: AMORES MAZA, JOAQUIN | C93: NO | D93: F | E93: MADRID
A94: 44805207 | B94: ANCA TARDÁGUILA, PABLO | C94: NO | D94: I | E94: A CORUÑA
A95: 46737548 | B95: ANDREA PEREZ, MARIANO | C95: NO | D95: I | E95: BARCELONA
A96: 70873085 | B96: ANDRES BAYO, ESTHER | C96: SI | D96: I | E96: VALLADOLID
A97: 45424935 | B97: ANDRES RODERO, JOSE MIGUEL | C97: NO | D97: E | E97: VALLADOLID
A98: 45675904 | B98: ANDRES VALIN, SARAI | C98: SI | D98: I | E98: MADRID
A99: 17753218 | B99: ANDREU PACO, Mª DEL MAR | C99: NO | D99: F | E99: MADRID
A100: 7984893 | B100: ANDRINO REY, MARIA EUGENIA | C100: NO | D100: I | E100: VALLADOLID
A101: 51417913 | B101: ANSEDES LOPEZ, IGNACIO | C101: NO | D101: I | E101: MADRID
A102: 3888994 | B102: APARICIO AGUADO, DIANA | C102: NO | D102: I | E102: MADRID
A103: 44863288 | B103: APARICIO CUBAS, BLANCA | C103: SI | D103: I | E103: VALENCIA
A104: 37361343 | B104: APARICIO GUTIERREZ, MARIA | C104: SI | D104: F | E104: BARCELONA
A105: 51390260 | B105: APARICIO MU/OZ, CARLOS | C105: NO | D105: I | E105: MADRID
A106: 10899375 | B106: APARICIO PACHECO, BLANCA ESTHER | C106: NO | D106: I | E106: VALLADOLID
A107: 43736400 | B107: AQUILUE CAVA, JAVIER | C107: SI | D107: E | E107: BARCELONA
A108: 11841607 | B108: ARA DEL HOYO, CRISTINA | C108: SI | D108: I | E108: MADRID
A109: 18438441 | B109: ARANA PARDO, MARIA PILAR | C109: SI | D109: I | E109: BARCELONA
A110: 43742350 | B110: ARANDA GONZALEZ, MARIA ASTRID | C110: NO | D110: I | E110: BARCELONA
A111: 5682012 | B111: ARANGUEZ TORQUEMADA, PEDRO | C111: NO | D111: I | E111: MADRID
A112: 52318214 | B112: ARANSAY ALEJANDRE, ANA MARIA | C112: SI | D112: E | E112: MADRID
A113: 46876500 | B113: ARAUZO GONZALEZ, JOSE MARIA | C113: NO | D113: I | E113: MADRID
A114: 12764266 | B114: AREÑOS QUINTANILLA, JOSE ANTONIO | C114: NO | D114: F | E114: VALLADOLID
A115: 53010641 | B115: ARESTE GIL, DAVID | C115: SI | D115: I | E115: MADRID
A116: 52779499 | B116: ARGILES SAN MARTIN, CONCEPCION | C116: NO | D116: F | E116: MADRID
A117: 44461175 | B117: ARIAS CARBAJALES, HORTENSIA | C117: NO | D117: I | E117: A CORUÑA
A118: 34981982 | B118: ARIAS GONZALEZ, GERARDO | C118: NO | D118: E | E118: MADRID
A119: 33322813 | B119: ARIAS LOPEZ, M.YOLANDA | C119: SI | D119: I | E119: A CORUÑA
A120: 76620185 | B120: ARIAS POMBO, BAUTISTA | C120: NO | D120: F | E120: A CORUÑA
A121: 44818297 | B121: ARIAS RODRIGUEZ, BELEN | C121: SI | D121: I | E121: A CORUÑA
A122: 44446912 | B122: ARIAS RODRIGUEZ, REBECA MARIA | C122: SI | D122: F | E122: MADRID
A123: 9436276 | B123: ARIAS VELAZQUEZ, LUCIA | C123: SI | D123: I | E123: A CORUÑA
A124: 72978901 | B124: ARIÑO LOPEZ, CARLOTA | C124: NO | D124: E | E124: MADRID
A125: 52683526 | B125: ARMERO RONCERO, YOLANDA | C125: NO | D125: F | E125: VALENCIA
A126: 8851450 | B126: ARNAEZ BLAZQUEZ, CARMEN LUZ | C126: SI | D126: I | E126: SEVILLA
A127: 53046857 | B127: ARNES LAGO, MARCO ANTONIO | C127: NO | D127: I | E127: MADRID
A128: 9309732 | B128: ARRANZ GARCIA, ANA ISABEL | C128: SI | D128: I | E128: VALLADOLID
A129: 2653464 | B129: ARRANZ HERNANDEZ, MARIA | C129: NO | D129: E | E129: MADRID
A130: 13164324 | B130: ARREBA MARTINEZ, SUSANA | C130: NO | D130: I | E130: VALLADOLID
A131: 46144279 | B131: ARREDONDA NEGRE, PALMIRA | C131: SI | D131: E | E131: BARCELONA
A132: 17438327 | B132: ARREGUI MELUS, MARIA LUISA | C132: NO | D132: I | E132: MADRID
A133: 33268136 | B133: ARRIBAS LOPEZ-ANGLADA, MARIA JESUS | C133: NO | D133: I | E133: A CORUÑA
A134: 33343727 | B134: ARROJO VAZQUEZ, ZULEIKA | C134: NO | D134: I | E134: A CORUÑA
A135: 1925256 | B135: ARTACHO IZQUIERDO, FRANCISCO JOSE | C135: NO | D135: E | E135: MADRID
A136: 48537738 | B136: ASENSI GISBERT, MARIA TERESA | C136: NO | D136: E | E136: VALENCIA
A137: 2541717 | B137: ASENSIO GARCIA, VICENTE JACOBO | C137: NO | D137: I | E137: MADRID
A138: 33336338 | B138: ASOREY VARELA, ELENA | C138: NO | D138: I | E138: MADRID
A139: 32806723 | B139: ASTRAY YEPES, EMILIO | C139: SI | D139: I | E139: A CORUÑA
A140: 44381458 | B140: ATIENZA GARCIA, JOSE ANTONIO | C140: NO | D140: I | E140: MADRID
A141: 47063739 | B141: AVENDAÑO MUÑOZ, MARIA FELIX | C141: NO | D141: F | E141: MADRID
A142: 24264131 | B142: AVILA AVILA, FRANCISCO JESU | C142: SI | D142: I | E142: MALAGA
A143: 4201584 | B143: AVILA GONZALEZ, FELIPE | C143: NO | D143: I | E143: MADRID
A144: 77468696 | B144: AVILA PEÑUELA, MARIA BEGOÑA | C144: NO | D144: I | E144: MALAGA
A145: 79262261 | B145: AYUSO VERDE, MARIA CARMEN | C145: NO | D145: I | E145: MADRID
A146: 16017738 | B146: AZAGRA GALINDO, EVA MARIA | C146: NO | D146: I | E146: MADRID
A147: 52443023 | B147: AZNAREZ JIMENEZ, REGINA | C147: NO | D147: I | E147: MADRID
A148: 25173300 | B148: AZPEITIA LUCEA, JAVIER | C148: NO | D148: I | E148: MADRID
A149: 74648502 | B149: BAENA GORDILLO, ANGELICA | C149: NO | D149: I | E149: MALAGA
A150: 52640614 | B150: BAIXAULI FORTEA, FRANCISCO JOSE | C150: SI | D150: F | E150: VALENCIA
A151: 71429478 | B151: BALBOA OREJAS, CRISTINA | C151: NO | D151: I | E151: VALLADOLID
A152: 36102244 | B152: BALBUENA FERNANDEZ, PABLO | C152: NO | D152: I | E152: A CORUÑA
A153: 13795688 | B153: BALMASEDA VILLEGAS, GUILLERMO | C153: NO | D153: I | E153: MADRID
A154: 80064334 | B154: BALSERA BERNARDO, MARIA JOSE | C154: NO | D154: I | E154: SEVILLA
A155: 29122975 | B155: BALLANO CUENCA, EMILIO ERNESTO | C155: NO | D155: I | E155: MADRID
A156: 29193509 | B156: BALLESTER CERVELLO, M. PILAR | C156: NO | D156: I | E156: VALENCIA
A157: 20240002 | B157: BALLESTEROS RODRIGUEZ, LUIS | C157: NO | D157: I | E157: VALENCIA
A158: 46795404 | B158: BAÑO APARICIO, ANA MARIA | C158: SI | D158: I | E158: BARCELONA
A159: 44455946 | B159: BARANDELA SALGADO, M. CRISTINA | C159: SI | D159: F | E159: A CORUÑA
A160: 50461754 | B160: BARBA CALDERON, ANA MARIA | C160: SI | D160: I | E160: MADRID
A161: 53142148 | B161: BARBA TORRES, MARIA JOSE | C161: NO | D161: I | E161: MADRID
A162: 5415349 | B162: BARBERA LECHA, BARBARA | C162: SI | D162: I | E162: MADRID
A163: 32660918 | B163: BARCIA VAZQUEZ, FRANCISCO J. | C163: NO | D163: I | E163: A CORUÑA
A164: 36157564 | B164: BARGE RUIDO, ELENA | C164: SI | D164: I | E164: A CORUÑA
A165: 13778934 | B165: BARQUIN LAVIN, ELENA | C165: NO | D165: I | E165: MADRID
A166: 18440460 | B166: BARRADO MELENDEZ, ELVIRA | C166: SI | D166: I | E166: VALENCIA
A167: 76907952 | B167: BARRAL LAMAZARES, ISABEL | C167: NO | D167: I | E167: A CORUÑA
A168: 76023314 | B168: BARRANTES POLO, MARIA MAROZIA | C168: NO | D168: F | E168: MADRID
A169: 50439775 | B169: BARREIRA IGUAL, EVA ANGELINA | C169: SI | D169: I | E169: MADRID
A170: 44807683 | B170: BARREIRO FONTENLA, MARCOS ANTONI0 | C170: SI | D170: I | E170: A CORUÑA
A171: 33348262 | B171: BARREIRO GOMEZ, PABLO | C171: NO | D171: I | E171: A CORUÑA
A172: 71639355 | B172: BARRIL TESTERA, EVA | C172: NO | D172: I | E172: A CORUÑA
A173: 71419792 | B173: BARRIO ALONSO, VERONICA | C173: NO | D173: I | E173: MADRID
A174: 12731776 | B174: BARRIO PRIMO, CARLOS | C174: SI | D174: I | E174: MADRID
A175: 71018274 | B175: BARRIO VIZAN, PEDRO | C175: SI | D175: I | E175: VALLADOLID
A176: 48905988 | B176: BARROSO PENCO, CAROLINA | C176: SI | D176: I | E176: SEVILLA
A177: 7991622 | B177: BARRUECO GARCIA, ANGEL | C177: NO | D177: I | E177: VALLADOLID
A178: 3466707 | B178: BARTOLOME MARTIN, MARTA | C178: NO | D178: I | E178: MADRID
A179: 20206903 | B179: BARTOLOME SOLIS, MARIA PILAR | C179: SI | D179: I | E179: MADRID
A180: 78211821 | B180: BAUZA MATAS, GABRIEL | C180: NO | D180: I | E180: BARCELONA
A181: 11735432 | B181: BAZ GAGO, ANA MARIA | C181: NO | D181: I | E181: VALLADOLID
A182: 33468304 | B182: BAZAN CERDAN, RUBEN | C182: SI | D182: I | E182: VALENCIA
A183: 4602813 | B183: BEAMUD SIMARRO, M. CRISTINA | C183: NO | D183: I | E183: MADRID
A184: 37382366 | B184: BECERRA ROMAN, FLORENTINA | C184: SI | D184: F | E184: BARCELONA
A185: 50100848 | B185: BECERRIL MUÑOZ, DAVID | C185: NO | D185: I | E185: MADRID
A186: 7969557 | B186: BECERRO FERNANDEZ, BEATRIZ | C186: SI | D186: I | E186: VALLADOLID
A187: 52654727 | B187: BEJAR VALERO, MARIA CARMEN | C187: SI | D187: I | E187: VALENCIA
A188: 22141992 | B188: BELDA CANTO, FRANCISCO | C188: SI | D188: E | E188: VALENCIA
A189: 44397134 | B189: BELMONTE SIMON, ANTONIO JOSE | C189: SI | D189: I | E189: VALENCIA
A190: 53161541 | B190: BELLO GOTI, PATRICIA | C190: NO | D190: I | E190: A CORUÑA
A191: 29190985 | B191: BELLOT SANCHEZ, IGNACIO | C191: SI | D191: E | E191: VALENCIA
A192: 16594903 | B192: BENITO GALILEA, JOSE ANTONIO | C192: SI | D192: I | E192: VALLADOLID
A193: 7491116 | B193: BENITO DEL VALLE, EDUARDO | C193: SI | D193: I | E193: MADRID
A194: 2547947 | B194: BERDEJO DIAZ, CRISTINA | C194: NO | D194: I | E194: MADRID
A195: 38449501 | B195: BERGADA MUÑOZ, DANIEL | C195: NO | D195: I | E195: BARCELONA
A196: 43450389 | B196: BERLANGA TORRES, MARTA | C196: SI | D196: E | E196: BARCELONA
A197: 9014558 | B197: BERMEJO MOYA, ANA ISABEL | C197: SI | D197: I | E197: MADRID
A198: 32450147 | B198: BERMUDEZ BARGO, ALVARO ELOY | C198: NO | D198: I | E198: A CORUÑA
A199: 24370304 | B199: BERNADES CASTELLANOS, NOELIA | C199: NO | D199: I | E199: VALENCIA
A200: 3445036 | B200: BERNARDOS PALOMO, AMALIO | C200: NO | D200: I | E200: MADRID
... 298 more rows

Sheet Macro 04
A2: D.N.I. | B2: APELLIDOS Y NOMBRE | C2: RESERVA | D2: IDIOMA | E2: SEDE
E3: BARCELONA

Sheet Otros datos
A1: CODIGO | B1: NOMBREPELI | C1: TIPO | D1: FECHAING | E1: PRECIO | F1: ESTADO | G1: CANTIDAD | H1: TOTAL
A2: 143 | B2: DRESSED TO KILL | C2: A | D2: 35940 | E2: 20.7 | F2: D | G2: 9 | H2: =E2*G2 -> 186.3
A3: 78 | B3: JULIET OF THE SPIRITS | C3: A | D3: 35898 | E3: 20.7 | F3: N/D | G3: 2 | H3: =E3*G3 -> 41.4
A4: 478 | B4: MATEWAN | C4: B | D4: 35864 | E4: 16.5 | F4: D | G4: 1 | H4: 16.5
A5: 630 | B5: WIZARD OF OZ, THE | C5: C | D5: 36054 | E5: 12.8 | F5: D | G5: 6 | H5: 76.8
A6: 72 | B6: KRAMER VS. KRAMER | C6: A | D6: 35875 | E6: 20.7 | F6: N/D | G6: 5 | H6: 103.5
A7: 468 | B7: HAND THAT ROCKS THE CRADLE, TH | C7: B | D7: 36035 | E7: 16.4 | F7: D | G7: 1 | H7: 16.4
A8: 1006 | B8: F/X | C8: E | D8: 35857 | E8: 8.2 | F8: D | G8: 4 | H8: 32.8
A9: 833 | B9: MONEY PIT, THE | C9: D | D9: 36043 | E9: 10 | F9: D | G9: 2 | H9: 20
A10: 873 | B10: WAR OF THE ROSES, THE | C10: D | D10: 35996 | E10: 10.3 | F10: D | G10: 9 | H10: 92.7
A11: 968 | B11: INN OF THE SIXTH HAPPINESS, TH | C11: D | D11: 35882 | E11: 10.5 | F11: N/D | G11: 8 | H11: 84
A12: 470 | B12: K-9 | C12: B | D12: 36052 | E12: 16.9 | F12: N/D | G12: 4 | H12: 67.6
A13: 11 | B13: BAD BOYS | C13: A | D13: 36056 | E13: 20.6 | F13: N/D | G13: 8 | H13: 164.8
A14: 8 | B14: BLACK SUNDAY | C14: A | D14: 35953 | E14: 20.5 | F14: D | G14: 1 | H14: 20.5
A15: 897 | B15: FX2 - THE DEADLY ART OF ILLUSI | C15: D | D15: 35942 | E15: 10.4 | F15: N/D | G15: 6 | H15: 62.4
A16: 656 | B16: BARTON FINK | C16: C | D16: 35863 | E16: 12.2 | F16: D | G16: 1 | H16: 12.2
A17: 659 | B17: GLENN MILLER STORY, THE | C17: C | D17: 35905 | E17: 12.1 | F17: D | G17: 5 | H17: 60.5
A18: 1019 | B18: KING AND I, THE | C18: E | D18: 35983 | E18: 8.8 | F18: N/D | G18: 5 | H18: 44
A19: 855 | B19: SWIMMING TO CAMBODIA | C19: D | D19: 36133 | E19: 10.7 | F19: D | G19: 7 | H19: 74.9
A20: 742 | B20: UNDER SIEGE | C20: C | D20: 35980 | E20: 12.5 | F20: D | G20: 8 | H20: 100
A21: 434 | B21: HARVEY | C21: B | D21: 35906 | E21: 16 | F21: D | G21: 6 | H21: 96
A22: 706 | B22: LAST OF THE MOHICANS, THE | C22: C | D22: 35918 | E22: 12.9 | F22: D | G22: 9 | H22: 116.1
A23: 119 | B23: SNOW WHITE | C23: A | D23: 36095 | E23: 20.1 | F23: D | G23: 3 | H23: 60.3
A24: 737 | B24: ZELIG | C24: C | D24: 35998 | E24: 12.6 | F24: D | G24: 5 | H24: 63
A25: 543 | B25: TRADING PLACES | C25: C | D25: 35999 | E25: 12.2 | F25: D | G25: 3 | H25: 36.6
A26: 679 | B26: HITCHER, THE | C26: C | D26: 36078 | E26: 12.1 | F26: D | G26: 2 | H26: 24.2
A27: 435 | B27: COLORS | C27: B | D27: 35903 | E27: 16.7 | F27: D | G27: 10 | H27: 167
A28: 432 | B28: EDUCATING RITA | C28: B | D28: 36082 | E28: 16 | F28: D | G28: 2 | H28: 32
A29: 585 | B29: JAWS 2 | C29: C | D29: 36157 | E29: 12.7 | F29: D | G29: 10 | H29: 127
A30: 533 | B30: O LUCKY MAN! | C30: C | D30: 36075 | E30: 12.5 | F30: D | G30: 4 | H30: 50
A31: 35 | B31: SWEET DREAMS | C31: A | D31: 35881 | E31: 20.2 | F31: D | G31: 9 | H31: 181.8
A32: 902 | B32: FRANTIC | C32: D | D32: 36057 | E32: 10 | F32: D | G32: 3 | H32: 30
A33: 92 | B33: SOME LIKE IT HOT | C33: A | D33: 36045 | E33: 20.8 | F33: D | G33: 7 | H33: 145.6
A34: 1010 | B34: DIRTY DANCING | C34: E | D34: 36020 | E34: 8.6 | F34: N/D | G34: 9 | H34: 77.4
A35: 122 | B35: MY BRILLIANT CAREER | C35: A | D35: 35940 | E35: 20.1 | F35: N/D | G35: 6 | H35: 120.6
A36: 749 | B36: FOUL PLAY | C36: C | D36: 36140 | E36: 12.7 | F36: D | G36: 10 | H36: 127
A37: 678 | B37: BIG TROUBLE IN LITTLE CHINA | C37: C | D37: 35998 | E37: 12.7 | F37: D | G37: 1 | H37: 12.7
A38: 668 | B38: MY BEAUTIFUL LAUNDERETTE | C38: C | D38: 36038 | E38: 12.4 | F38: D | G38: 6 | H38: 74.4
A39: 925 | B39: DEATH BECOMES HER | C39: D | D39: 36107 | E39: 10.5 | F39: N/D | G39: 7 | H39: 73.5
A40: 40 | B40: SMALL CHANGE | C40: A | D40: 36009 | E40: 20.5 | F40: D | G40: 10 | H40: 205
A41: 810 | B41: VAMPIRE'S KISS | C41: D | D41: 36145 | E41: 10.1 | F41: D | G41: 2 | H41: 20.2
A42: 949 | B42: STORMY WEATHER | C42: D | D42: 36145 | E42: 10.6 | F42: D | G42: 8 | H42: 84.8
A43: 1001 | B43: FLOWERS IN THE ATTIC | C43: E | D43: 36133 | E43: 8.8 | F43: D | G43: 7 | H43: 61.6
A44: 822 | B44: REGARDING HENRY | C44: D | D44: 36081 | E44: 10.6 | F44: D | G44: 9 | H44: 95.4
A45: 603 | B45: FLASHDANCE | C45: C | D45: 36091 | E45: 12.2 | F45: D | G45: 1 | H45: 12.2
A46: 1014 | B46: CITIZEN KANE | C46: E | D46: 36157 | E46: 8.4 | F46: D | G46: 8 | H46: 67.2
A47: 30 | B47: PORKY'S REVENGE | C47: A | D47: 35851 | E47: 20.5 | F47: D | G47: 1 | H47: 20.5
A48: 38 | B48: BULL DURHAM | C48: A | D48: 35965 | E48: 20.3 | F48: D | G48: 9 | H48: 182.7
A49: 875 | B49: FERRIS BUELLER'S DAY OFF | C49: D | D49: 35934 | E49: 10.7 | F49: D | G49: 3 | H49: 32.1
A50: 768 | B50: BANG THE DRUM SLOWLY | C50: D | D50: 36113 | E50: 10.4 | F50: D | G50: 6 | H50: 62.4
A51: 711 | B51: POSEIDON ADVENTURE | C51: C | D51: 35866 | E51: 12.5 | F51: D | G51: 5 | H51: 62.5
A52: 555 | B52: LITTLE MERMAID, THE | C52: C | D52: 36128 | E52: 12 | F52: N/D | G52: 3 | H52: 36
A53: 58 | B53: DRACULA (1931) | C53: A | D53: 35894 | E53: 20.1 | F53: D | G53: 8 | H53: 160.8
A54: 950 | B54: FROM HERE TO ETERNITY | C54: D | D54: 35884 | E54: 10.3 | F54: D | G54: 4 | H54: 41.2
A55: 680 | B55: SLEEPING WITH THE ENEMY | C55: C | D55: 36067 | E55: 12.1 | F55: D | G55: 0 | H55: 0
A56: 420 | B56: FERNGULLY... THE LAST RAINFORE | C56: B | D56: 36020 | E56: 16.1 | F56: D | G56: 5 | H56: 80.5
A57: 848 | B57: DAS BOOT (THE BOAT) | C57: D | D57: 36092 | E57: 10.4 | F57: N/D | G57: 1 | H57: 10.4
A58: 151 | B58: CHRISTMAS CAROL, A | C58: A | D58: 36145 | E58: 20.4 | F58: D | G58: 3 | H58: 61.2
A59: 131 | B59: WORLD ACCORDING TO GARP, THE | C59: A | D59: 35962 | E59: 20.7 | F59: D | G59: 1 | H59: 20.7
A60: 684 | B60: CARMEN | C60: C | D60: 36024 | E60: 12.8 | F60: N/D | G60: 0 | H60: 0
A61: 708 | B61: THIS PROPERTY IS CONDEMNED | C61: C | D61: 35936 | E61: 12 | F61: D | G61: 8 | H61: 96
A62: 636 | B62: JFK | C62: C | D62: 36056 | E62: 12 | F62: D | G62: 3 | H62: 36
A63: 901 | B63: WIZARDS | C63: D | D63: 35874 | E63: 10.9 | F63: D | G63: 7 | H63: 76.3
A64: 752 | B64: USED PEOPLE | C64: D | D64: 35965 | E64: 10.9 | F64: N/D | G64: 3 | H64: 32.7
A65: 686 | B65: MOULIN ROUGE | C65: C | D65: 35939 | E65: 12.9 | F65: D | G65: 4 | H65: 51.6
A66: 497 | B66: PURPLE RAIN | C66: B | D66: 35979 | E66: 16.1 | F66: D | G66: 10 | H66: 161
A67: 986 | B67: DO THE RIGHT THING | C67: D | D67: 36025 | E67: 10.6 | F67: N/D | G67: 9 | H67: =E67*G67 -> 95.4
A68: 405 | B68: BODY HEAT | C68: B | D68: 35941 | E68: 16 | F68: D | G68: 1 | H68: 16
A69: 854 | B69: DIVA | C69: D | D69: 36029 | E69: 10.1 | F69: D | G69: 7 | H69: 70.7
A70: 827 | B70: HARD DAY'S NIGHT, A | C70: D | D70: 35926 | E70: 10.3 | F70: D | G70: 10 | H70: 103
A71: 19 | B71: UP IN SMOKE | C71: A | D71: 35929 | E71: 20.5 | F71: D | G71: 8 | H71: 164
A72: 721 | B72: KISS ME DEADLY | C72: C | D72: 36115 | E72: 12.1 | F72: N/D | G72: 0 | H72: 0
A73: 512 | B73: BACK TO THE FUTURE 2 | C73: C | D73: 35873 | E73: 12.5 | F73: D | G73: 8 | H73: 100
A74: 1020 | B74: NIGHTMARE ON ELM STREET, A | C74: E | D74: 35986 | E74: 8.2 | F74: D | G74: 8 | H74: 65.6
A75: 440 | B75: FIDDLER ON THE ROOF | C75: B | D75: 36106 | E75: 16.6 | F75: D | G75: 5 | H75: 83
A76: 550 | B76: BEAUTY AND THE BEAST (ANIMATED | C76: C | D76: 35997 | E76: 12.6 | F76: D | G76: 4 | H76: 50.4
A77: 570 | B77: JERK, THE | C77: C | D77: 35963 | E77: 12.5 | F77: D | G77: 6 | H77: 75
A78: 814 | B78: HOPE AND GLORY | C78: D | D78: 35993 | E78: 10.2 | F78: N/D | G78: 2 | H78: 20.4
A79: 824 | B79: WUTHERING HEIGHTS | C79: D | D79: 36033 | E79: 10.7 | F79: N/D | G79: 1 | H79: 10.7
A80: 499 | B80: ADVENTURES OF MILO AND OTIS, T | C80: B | D80: 36052 | E80: 16.2 | F80: D | G80: 10 | H80: 162
A81: 862 | B81: TO SLEEP WITH ANGER | C81: D | D81: 36089 | E81: 10.5 | F81: D | G81: 4 | H81: 42
A82: 84 | B82: KING OF HEARTS | C82: A | D82: 35984 | E82: 20.3 | F82: D | G82: 0 | H82: 0
A83: 674 | B83: RYAN'S DAUGHTER | C83: C | D83: 36153 | E83: 12.3 | F83: D | G83: 5 | H83: 61.5
A84: 561 | B84: TOWN LIKE ALICE, A | C84: C | D84: 36135 | E84: 12.8 | F84: N/D | G84: 9 | H84: 115.2
A85: 829 | B85: CANNONBALL RUN 1 | C85: D | D85: 36056 | E85: 10.5 | F85: N/D | G85: 2 | H85: 21
A86: 937 | B86: BECKET | C86: D | D86: 35943 | E86: 10.8 | F86: N/D | G86: 7 | H86: 75.6
A87: 453 | B87: LOST IN AMERICA | C87: B | D87: 35928 | E87: 16.5 | F87: D | G87: 2 | H87: 33
A88: 108 | B88: TAMING OF THE SHREW, THE | C88: A | D88: 36001 | E88: 20.4 | F88: D | G88: 2 | H88: 40.8
A89: 681 | B89: MIDNIGHT COWBOY | C89: C | D89: 36119 | E89: 12.5 | F89: N/D | G89: 0 | H89: 0
A90: 59 | B90: BAGDAD CAFE | C90: A | D90: 35899 | E90: 20.4 | F90: D | G90: 5 | H90: 102
A91: 403 | B91: APRIL FOOL'S DAY | C91: B | D91: 36123 | E91: 16.3 | F91: N/D | G91: 9 | H91: 146.7
A92: 892 | B92: GREMLINS 2 - THE NEW BATCH | C92: D | D92: 36059 | E92: 10.9 | F92: D | G92: 9 | H92: 98.1
A93: 536 | B93: PRETTY IN PINK | C93: C | D93: 35867 | E93: 12 | F93: N/D | G93: 5 | H93: 60
A94: 724 | B94: BUFFY THE VAMPIRE SLAYER | C94: C | D94: 36006 | E94: 12.5 | F94: D | G94: 8 | H94: 100
A95: 975 | B95: LAST PICTURE SHOW, THE | C95: D | D95: 35942 | E95: 10.6 | F95: D | G95: 10 | H95: 106
A96: 756 | B96: JUNGLE BOOK, THE (1942) | C96: D | D96: 36006 | E96: 10.4 | F96: D | G96: 0 | H96: 0
A97: 775 | B97: CHILD'S PLAY 2 | C97: D | D97: 36091 | E97: 10.9 | F97: D | G97: 7 | H97: 76.3
A98: 806 | B98: STEPFATHER 2 - MAKE ROOM FOR D | C98: D | D98: 36032 | E98: 10.1 | F98: D | G98: 4 | H98: 40.4
A99: 859 | B99: GOODBYE GIRL, THE | C99: D | D99: 35896 | E99: 10.5 | F99: D | G99: 9 | H99: 94.5
A100: 790 | B100: ROCKY 3 | C100: D | D100: 35965 | E100: 10 | F100: D | G100: 4 | H100: 40
A101: 965 | B101: INHERIT THE WIND | C101: D | D101: 36099 | E101: 10.3 | F101: D | G101: 3 | H101: 30.9
A102: 773 | B102: BORN ON THE FOURTH OF JULY | C102: D | D102: 36055 | E102: 10.6 | F102: N/D | G102: 2 | H102: 21.2
A103: 698 | B103: WILD ORCHID | C103: C | D103: 36010 | E103: 12.2 | F103: D | G103: 8 | H103: 97.6
A104: 484 | B104: BILL & TED'S EXCELLENT ADVENTU | C104: B | D104: 36133 | E104: 16.2 | F104: D | G104: 6 | H104: 97.2
A105: 1002 | B105: TAPS | C105: E | D105: 35982 | E105: 8 | F105: N/D | G105: 2 | H105: 16
A106: 819 | B106: GOLDEN CHILD, THE | C106: D | D106: 36136 | E106: 10.5 | F106: D | G106: 7 | H106: 73.5
A107: 26 | B107: ZORBA THE GREEK | C107: A | D107: 36080 | E107: 20.7 | F107: D | G107: 4 | H107: 82.8
A108: 730 | B108: HARD TO KILL | C108: C | D108: 35855 | E108: 12.9 | F108: D | G108: 10 | H108: 129
A109: 608 | B109: OCTOPUSSY | C109: C | D109: 36020 | E109: 12.4 | F109: D | G109: 9 | H109: 111.6
A110: 112 | B110: HOOSIERS | C110: A | D110: 36101 | E110: 20.1 | F110: D | G110: 4 | H110: 80.4
A111: 1012 | B111: WALL, THE | C111: E | D111: 35959 | E111: 8.9 | F111: D | G111: 2 | H111: 17.8
A112: 798 | B112: WITNESS FOR THE PROSECUTION | C112: D | D112: 35918 | E112: 10.9 | F112: N/D | G112: 10 | H112: 109
A113: 110 | B113: ARSENIC AND OLD LACE | C113: A | D113: 35993 | E113: 20.8 | F113: D | G113: 10 | H113: 208
A114: 611 | B114: SOUND OF MUSIC, THE | C114: C | D114: 35870 | E114: 12 | F114: D | G114: 8 | H114: 96
A115: 654 | B115: ABYSS, THE | C115: C | D115: 36037 | E115: 12.4 | F115: N/D | G115: 9 | H115: 111.6
A116: 640 | B116: JEWEL OF THE NILE, THE | C116: C | D116: 36145 | E116: 12.6 | F116: D | G116: 9 | H116: 113.4
A117: 888 | B117: BEVERLY HILLS COP 2 | C117: D | D117: 36050 | E117: 10.6 | F117: D | G117: 3 | H117: 31.8
A118: 397 | B118: SHINING THROUGH | C118: B | D118: 35945 | E118: 16.3 | F118: N/D | G118: 7 | H118: 114.1
A119: 660 | B119: WAYNE'S WORLD | C119: C | D119: 35980 | E119: 12.8 | F119: D | G119: 6 | H119: 76.8
A120: 572 | B120: GROUNDHOG DAY | C120: C | D120: 36123 | E120: 12.5 | F120: D | G120: 6 | H120: 75
A121: 886 | B121: SINGIN' IN THE RAIN | C121: D | D121: 36005 | E121: 10.5 | F121: D | G121: 7 | H121: 73.5
A122: 481 | B122: NATIONAL LAMPOON'S VACATION | C122: B | D122: 36125 | E122: 16.6 | F122: D | G122: 8 | H122: 132.8
A123: 801 | B123: LADY VANISHES, THE | C123: D | D123: 35902 | E123: 10.6 | F123: D | G123: 0 | H123: 0
A124: 563 | B124: ADAM'S RIB | C124: C | D124: 36117 | E124: 12.6 | F124: D | G124: 1 | H124: 12.6
A125: 720 | B125: WITCHES OF EASTWICK, THE | C125: C | D125: 36099 | E125: 12.6 | F125: D | G125: 3 | H125: 37.8
A126: 853 | B126: CREEPSHOW 2 | C126: D | D126: 36034 | E126: 10.2 | F126: D | G126: 0 | H126: 0
A127: 878 | B127: FIRST BLOOD | C127: D | D127: 36097 | E127: 10.1 | F127: D | G127: 9 | H127: 90.9
A128: 962 | B128: SLEUTH | C128: D | D128: 35869 | E128: 10.4 | F128: N/D | G128: 0 | H128: 0
A129: 500 | B129: GRAPES OF WRATH, THE | C129: B | D129: 35900 | E129: 16.2 | F129: D | G129: 8 | H129: 129.6
A130: 627 | B130: BRAM STOKER'S DRACULA | C130: C | D130: 35879 | E130: 12.6 | F130: D | G130: 4 | H130: 50.4
A131: 735 | B131: ALWAYS | C131: C | D131: 36063 | E131: 12.8 | F131: N/D | G131: 0 | H131: =E131*G131 -> 0
A132: 995 | B132: KISS OF THE SPIDER WOMAN | C132: D | D132: 35933 | E132: 10.6 | F132: N/D | G132: 8 | H132: 84.8
A133: 984 | B133: DAMAGE | C133: D | D133: 36124 | E133: 10.7 | F133: D | G133: 0 | H133: 0
A134: 559 | B134: BANANAS | C134: C | D134: 36157 | E134: 12.1 | F134: N/D | G134: 10 | H134: 121
A135: 1018 | B135: SOMMERSBY | C135: E | D135: 35868 | E135: 8.9 | F135: N/D | G135: 9 | H135: 80.1
A136: 409 | B136: AROUND THE WORLD IN 80 DAYS | C136: B | D136: 36107 | E136: 16.6 | F136: N/D | G136: 8 | H136: 132.8
A137: 954 | B137: BRAZIL | C137: D | D137: 36099 | E137: 10.3 | F137: N/D | G137: 4 | H137: 41.2
A138: 115 | B138: PEOPLE UNDER THE STAIRS, THE | C138: A | D138: 35893 | E138: 20.8 | F138: D | G138: 9 | H138: 187.2
A139: 113 | B139: LOVE CRIMES | C139: A | D139: 36040 | E139: 20.5 | F139: N/D | G139: 1 | H139: 20.5
A140: 36 | B140: SLEEPING BEAUTY | C140: A | D140: 36068 | E140: 20.2 | F140: N/D | G140: 10 | H140: 202
A141: 98 | B141: TENDER MERCIES | C141: A | D141: 35856 | E141: 20.4 | F141: D | G141: 5 | H141: 102
A142: 957 | B142: WEST SIDE STORY | C142: D | D142: 36042 | E142: 10.8 | F142: D | G142: 5 | H142: 54
A143: 548 | B143: MY DARLING CLEMENTINE | C143: C | D143: 35940 | E143: 12.8 | F143: D | G143: 6 | H143: 76.8
A144: 719 | B144: DOWN BY LAW | C144: C | D144: 36159 | E144: 12.2 | F144: D | G144: 4 | H144: 48.8
A145: 57 | B145: CLOSE ENCOUNTERS OF THE THIRD | C145: A | D145: 35937 | E145: 20.4 | F145: N/D | G145: 5 | H145: 102
A146: 79 | B146: GOLD RUSH, THE | C146: A | D146: 36107 | E146: 20.6 | F146: D | G146: 1 | H146: 20.6
A147: 961 | B147: OUT OF THE PAST | C147: D | D147: 36040 | E147: 10.9 | F147: D | G147: 7 | H147: 76.3
A148: 477 | B148: SECRET OF MY SUCCESS | C148: B | D148: 35881 | E148: 16.8 | F148: D | G148: 10 | H148: 168
A149: 21 | B149: GREEN BERETS, THE | C149: A | D149: 36022 | E149: 20 | F149: D | G149: 3 | H149: 60
A150: 456 | B150: ROCKY 4 | C150: B | D150: 36058 | E150: 16.1 | F150: D | G150: 2 | H150: 32.2
A151: 568 | B151: RIVER'S EDGE, THE | C151: C | D151: 35933 | E151: 12.5 | F151: N/D | G151: 0 | H151: 0
A152: 907 | B152: TROOP BEVERLY HILLS | C152: D | D152: 36100 | E152: 10.6 | F152: D | G152: 5 | H152: 53
A153: 671 | B153: BONNIE AND CLYDE | C153: C | D153: 36391 | E153: 12.6 | F153: N/D | G153: 1 | H153: 12.6
A154: 652 | B154: M.A.S.H. | C154: C | D154: 36293 | E154: 12.3 | F154: D | G154: 10 | H154: 123
A155: 442 | B155: LIFE IS SWEET | C155: B | D155: 36400 | E155: 16.5 | F155: D | G155: 2 | H155: 33
A156: 584 | B156: ATLANTIC CITY | C156: C | D156: 36222 | E156: 12 | F156: D | G156: 8 | H156: 96
A157: 547 | B157: EASY MONEY | C157: C | D157: 36491 | E157: 12.1 | F157: D | G157: 1 | H157: 12.1
A158: 867 | B158: ADVENTURES OF FORD FAIRLANE, T | C158: D | D158: 36275 | E158: 10.2 | F158: D | G158: 5 | H158: 51
A159: 64 | B159: BADLANDS | C159: A | D159: 36518 | E159: 20.2 | F159: N/D | G159: 5 | H159: 101
A160: 577 | B160: AMERICAN ME | C160: C | D160: 36249 | E160: 12.7 | F160: D | G160: 8 | H160: 101.6
A161: 658 | B161: NORTH DALLAS FORTY | C161: C | D161: 36329 | E161: 12.9 | F161: D | G161: 5 | H161: 64.5
A162: 689 | B162: SHOW BOAT | C162: C | D162: 36522 | E162: 12 | F162: D | G162: 10 | H162: 120
A163: 758 | B163: CHARLOTTE'S WEB | C163: D | D163: 36254 | E163: 10.6 | F163: D | G163: 3 | H163: 31.8
A164: 525 | B164: HELLRAISER 2 | C164: C | D164: 36262 | E164: 12.7 | F164: D | G164: 5 | H164: 63.5
A165: 504 | B165: LIONHEART | C165: C | D165: 36367 | E165: 12.4 | F165: D | G165: 7 | H165: 86.8
A166: 29 | B166: SMOKEY AND THE BANDIT | C166: A | D166: 36238 | E166: 20.1 | F166: D | G166: 0 | H166: 0
A167: 731 | B167: ANIMAL HOUSE (NATIONAL LAMPOON | C167: C | D167: 36268 | E167: 12.6 | F167: D | G167: 5 | H167: 63
A168: 96 | B168: ROAD WARRIOR, THE | C168: A | D168: 36233 | E168: 20.1 | F168: D | G168: 8 | H168: 160.8
A169: 675 | B169: YOUNG GUNS 2 | C169: C | D169: 36297 | E169: 12.7 | F169: D | G169: 7 | H169: 88.9
A170: 450 | B170: MECHANIC, THE | C170: B | D170: 36291 | E170: 16.1 | F170: D | G170: 10 | H170: 161
A171: 865 | B171: OUT-OF-TOWNERS, THE | C171: D | D171: 36489 | E171: 10.1 | F171: D | G171: 0 | H171: 0
A172: 148 | B172: IT | C172: A | D172: 36407 | E172: 20.7 | F172: D | G172: 5 | H172: 103.5
A173: 999 | B173: ABOVE THE LAW | C173: D | D173: 36344 | E173: 10.6 | F173: D | G173: 9 | H173: 95.4
A174: 992 | B174: PRINCE OF TIDES, THE | C174: D | D174: 36513 | E174: 10.4 | F174: D | G174: 3 | H174: 31.2
A175: 469 | B175: FATAL ATTRACTION | C175: B | D175: 36370 | E175: 16 | F175: D | G175: 2 | H175: 32
A176: 406 | B176: HAMLET (1991 - MEL GIBSON) | C176: B | D176: 36240 | E176: 16 | F176: D | G176: 4 | H176: 64
A177: 82 | B177: VIDEODROME | C177: A | D177: 36498 | E177: 20.3 | F177: D | G177: 5 | H177: 101.5
A178: 50 | B178: HIGHLANDER | C178: A | D178: 36392 | E178: 20.8 | F178: D | G178: 4 | H178: 83.2
A179: 915 | B179: FOR A FEW DOLLARS MORE | C179: D | D179: 36499 | E179: 10.5 | F179: D | G179: 2 | H179: 21
A180: 725 | B180: YOUNG GUNS | C180: C | D180: 36494 | E180: 12.9 | F180: N/D | G180: 4 | H180: 51.6
A181: 573 | B181: DEEP COVER | C181: C | D181: 36488 | E181: 12.6 | F181: D | G181: 0 | H181: 0
A182: 650 | B182: LITTLE BIG MAN | C182: C | D182: 36456 | E182: 12.6 | F182: D | G182: 2 | H182: 25.2
A183: 762 | B183: STOP MAKING SENSE | C183: D | D183: 36286 | E183: 10.7 | F183: N/D | G183: 3 | H183: 32.1
A184: 876 | B184: HAIRSPRAY | C184: D | D184: 36284 | E184: 10.5 | F184: D | G184: 1 | H184: 10.5
A185: 881 | B185: RETURN OF THE PINK PANTHER | C185: D | D185: 36423 | E185: 10.3 | F185: D | G185: 5 | H185: 51.5
A186: 891 | B186: MR. SMITH GOES TO WASHINGTON | C186: D | D186: 36343 | E186: 10.1 | F186: D | G186: 0 | H186: 0
A187: 657 | B187: NIGHTMARE ON ELM STREET 2, A - | C187: C | D187: 36368 | E187: 12.5 | F187: D | G187: 0 | H187: 0
A188: 540 | B188: IT HAPPENED ONE NIGHT | C188: C | D188: 36426 | E188: 12.8 | F188: D | G188: 4 | H188: 51.2
A189: 1021 | B189: REVENGE | C189: E | D189: 36268 | E189: 8.6 | F189: D | G189: 3 | H189: 25.8
A190: 718 | B190: PAPER MOON | C190: C | D190: 36463 | E190: 12 | F190: D | G190: 6 | H190: 72
A191: 429 | B191: GHOST | C191: B | D191: 36269 | E191: 16.8 | F191: N/D | G191: 2 | H191: 33.6
A192: 844 | B192: TEMPEST , THE | C192: D | D192: 36475 | E192: 10.2 | F192: D | G192: 0 | H192: 0
A193: 1011 | B193: NECESSARY ROUGHNESS | C193: E | D193: 36420 | E193: 8.3 | F193: D | G193: 2 | H193: 16.6
A194: 52 | B194: REAR WINDOW | C194: A | D194: 36357 | E194: 20.8 | F194: D | G194: 5 | H194: 104
A195: 754 | B195: JAWS | C195: D | D195: 36377 | E195: 10.5 | F195: N/D | G195: 6 | H195: =E195*G195 -> 63
A196: 870 | B196: I SPIT ON YOUR GRAVE | C196: D | D196: 36390 | E196: 10.6 | F196: D | G196: 6 | H196: 63.6
A197: 726 | B197: CAT'S EYE | C197: C | D197: 36360 | E197: 12.2 | F197: D | G197: 6 | H197: 73.2
A198: 3 | B198: ANDY GRIFFITH SHOW, THE - A CH | C198: A | D198: 36295 | E198: 20.3 | F198: D | G198: 0 | H198: 0
A199: 539 | B199: AMERICAN TAIL, AN - FIEVEL GOE | C199: C | D199: 36473 | E199: 12.9 | F199: D | G199: 4 | H199: 51.6
A200: 904 | B200: BEACHES | C200: D | D200: 36286 | E200: 10.3 | F200: D | G200: 2 | H200: 20.6
... 587 more rows

Sheet Mac04 con Otros datos
A1: CODIGO | B1: NOMBREPELI | C1: TIPO | D1: FECHAING | E1: PRECIO | F1: ESTADO | G1: CANTIDAD | H1: TOTAL
C2: A | H2: >80
C3: A | H3: <50
C4: C | H4: >80
C5: C | H5: <50

Sheet Tempo
B2: Etiquetas de fila | C2: Suma de CANTIDAD | D2: Suma de MONTO TOTAL
B3: Caminos del Inca | C3: 694 | D3: 791276.8
B4: Efectivo | C4: 66 | D4: 79368
B5: T. Cred. E Wong | C5: 53 | D5: 68808
B6: T. Cred. Plaza Vea | C6: 19 | D6: 17640
B7: T. Cred. Ripley | C7: 30 | D7: 26790
B8: T. Cred. Saga Falabella | C8: 30 | D8: 26341.8
B9: T.Cred. Metro | C9: 33 | D9: 49008
B10: Tcred. Ahorros Bco. Conti | C10: 50 | D10: 55386.4
B11: Tcred. Ahorros Bco. Wiese | C11: 50 | D11: 77327
B12: Tcred. Am.Exp Bco. Conti | C12: 64 | D12: 90655.4
B13: Tcred. Am.Exp Bco. Cred | C13: 78 | D13: 76896
B14: Tcred. Am.Exp Bco. Interbanc | C14: 28 | D14: 11874.8
B15: Tcred. Am.Exp Bco. Wiese | C15: 20 | D15: 12012
B16: Tcred. Credimas Bco. Cred | C16: 86 | D16: 79368
B17: Tcred. Dorada Bco. Interbanc | C17: 17 | D17: 18149.4
B18: Tcred. Dorada XP Bco. Cred | C18: 17 | D18: 15223
B19: Tcred. Personal Bco. Wiese | C19: 53 | D19: 86429
B20: Comercial Arenales | C20: 692 | D20: 598767.5
B21: Efectivo | C21: 55 | D21: 23015.1
B22: T. Cred. E Wong | C22: 42 | D22: 44838
B23: T. Cred. Plaza Vea | C23: 20 | D23: 12256
B24: T. Cred. Ripley | C24: 62 | D24: 55006
B25: T. Cred. Saga Falabella | C25: 56 | D25: 33611.6
B26: T.Cred. Metro | C26: 32 | D26: 39807
B27: Tcred. Ahorros Bco. Conti | C27: 53 | D27: 39133.3
B28: Tcred. Ahorros Bco. Wiese | C28: 57 | D28: 43622
B29: Tcred. Am.Exp Bco. Conti | C29: 24 | D29: 9429
B30: Tcred. Am.Exp Bco. Cred | C30: 71 | D30: 69038.3
B31: Tcred. Am.Exp Bco. Interbanc | C31: 32 | D31: 27167.4
B32: Tcred. Am.Exp Bco. Wiese | C32: 39 | D32: 42736
B33: Tcred. Credimas Bco. Cred | C33: 44 | D33: 42844
B34: Tcred. Dorada XP Bco. Cred | C34: 44 | D34: 52985.6
B35: Tcred. Personal Bco. Wiese | C35: 61 | D35: 63278.2
B36: Jockey Plaza | C36: 875 | D36: 767974.6
B37: Efectivo | C37: 37 | D37: 19677
B38: T. Cred. E Wong | C38: 43 | D38: 76555
B39: T. Cred. Plaza Vea | C39: 81 | D39: 63989.8
B40: T. Cred. Ripley | C40: 20 | D40: 18813
B41: T. Cred. Saga Falabella | C41: 101 | D41: 101835.2
B42: Tcred. Ahorros Bco. Conti | C42: 64 | D42: 64557
B43: Tcred. Ahorros Bco. Wiese | C43: 39 | D43: 35293.7
B44: Tcred. Am.Exp Bco. Conti | C44: 15 | D44: 8281.2
B45: Tcred. Am.Exp Bco. Cred | C45: 89 | D45: 57542.2
B46: Tcred. Am.Exp Bco. Interbanc | C46: 60 | D46: 78214
B47: Tcred. Am.Exp Bco. Wiese | C47: 108 | D47: 85798
B48: Tcred. Credimas Bco. Cred | C48: 33 | D48: 16678
B49: Tcred. Dorada Bco. Interbanc | C49: 63 | D49: 40538.2
B50: Tcred. Dorada XP Bco. Cred | C50: 59 | D50: 62499
B51: Tcred. Personal Bco. Wiese | C51: 63 | D51: 37703.3
B52: Mega Plaza | C52: 650 | D52: 715474.8
B53: Efectivo | C53: 54 | D53: 11099.8
B54: T. Cred. E Wong | C54: 22 | D54: 18701
B55: T. Cred. Plaza Vea | C55: 29 | D55: 22577
B56: T. Cred. Ripley | C56: 56 | D56: 91754.4
B57: T. Cred. Saga Falabella | C57: 26 | D57: 40648
B58: T.Cred. Metro | C58: 9 | D58: 1099
B59: Tcred. Ahorros Bco. Conti | C59: 47 | D59: 63346
B60: Tcred. Ahorros Bco. Wiese | C60: 70 | D60: 42725.8
B61: Tcred. Am.Exp Bco. Conti | C61: 20 | D61: 26333
B62: Tcred. Am.Exp Bco. Cred | C62: 71 | D62: 92399
B63: Tcred. Am.Exp Bco. Interbanc | C63: 31 | D63: 38801
B64: Tcred. Am.Exp Bco. Wiese | C64: 65 | D64: 93465.8
B65: Tcred. Credimas Bco. Cred | C65: 23 | D65: 18084
B66: Tcred. Dorada Bco. Interbanc | C66: 43 | D66: 65632
B67: Tcred. Dorada XP Bco. Cred | C67: 57 | D67: 62671
B68: Tcred. Personal Bco. Wiese | C68: 27 | D68: 26138
B69: Plaza San Miguel | C69: 812 | D69: 778581.7
B70: Efectivo | C70: 66 | D70: 50991
B71: T. Cred. E Wong | C71: 96 | D71: 57672.7
B72: T. Cred. Plaza Vea | C72: 48 | D72: 33545.5
B73: T. Cred. Ripley | C73: 60 | D73: 85750.5
B74: T. Cred. Saga Falabella | C74: 42 | D74: 41152
B75: T.Cred. Metro | C75: 34 | D75: 52327
B76: Tcred. Ahorros Bco. Conti | C76: 21 | D76: 41419
B77: Tcred. Ahorros Bco. Wiese | C77: 12 | D77: 14891
B78: Tcred. Am.Exp Bco. Conti | C78: 48 | D78: 29013.6
B79: Tcred. Am.Exp Bco. Cred | C79: 33 | D79: 31871
B80: Tcred. Am.Exp Bco. Interbanc | C80: 20 | D80: 39056
B81: Tcred. Am.Exp Bco. Wiese | C81: 61 | D81: 58544
B82: Tcred. Credimas Bco. Cred | C82: 96 | D82: 100503.6
B83: Tcred. Dorada Bco. Interbanc | C83: 34 | D83: 32830
B84: Tcred. Dorada XP Bco. Cred | C84: 104 | D84: 84200.8
B85: Tcred. Personal Bco. Wiese | C85: 37 | D85: 24814
B86: Total general | C86: 3723 | D86: 3652075.4

Sheet Macro 05
T1: Nro. cliente | U1: Nombre o Razón Social | V1: Dirección
B2: CONSORCIO COMERCIAL "PLAZA MIRA" | T2: 1 | U2: David Wells | V2: 4120 Howard Ave. Lakeland, NE 22042
B3: Lima Plaza Shopping Master | T3: 2 | U3: Karri Wu | V3: 20 North Glenwood Lakeland, NE 22042
B4: Los Caramelos 1230 | T4: 3 | U4: Lakeland Foods | V4: 870 Mall Road Lakeland, NE 22101
B5: Chosica | T5: 4 | U5: Whole Foods Bakery | V5: 870 Mall Road Lakeland, NE 22101
T6: 5 | U6: Lakeland Arts Board | V6: 20 East Lincoln Lakeland, NE 22891
T7: 6 | U7: Nebraska Board of Arts | V7: 31 Capitol Ave. Lincoln, NE 20100
B8: REPORTE GENERAL DE VENTAS DE CINCO TIENDAS DEL AÑO 2003 | T8: 7 | U8: Barry Dawes | V8: 8900 Woods Rd. Lakeland, NE 22750
T9: 8 | U9: Linda Greene | V9: 3010 Fawlton Ln. Glenwood, NE 28910
B10: EMPLEADO | C10: TIENDA | D10: PRODUCTO | E10: PRECIO($) | F10: FECHA | G10: CANTIDAD | H10: MONTO TOTAL | I10: NOMBRE O RAZON SOCIAL | J10: Forma Pago | T10: 9 | U10: Toy World | V10: 870 Mall Road Lakeland, NE 22101
B11: Wells, Jason | C11: Plaza San Miguel | D11: Licuadora Wormex 8 v. | E11: =IF(LEFT(D11,2)="Li",RANDBETWEEN(300,800)/10,IF(LEFT(D11,2)="Ho",RANDBETWEEN(160,320),IF(LEFT(D11,2)="La",RANDBETWEEN(800,1200),IF(LEFT(D11,2)="Co",RANDBETWEEN(640,1200),RANDBETWEEN(460,2440))))) -> 52.1 | F11: 00:00:00 | G11: 5 | H11: =E11*G11 -> 260.5 | I11: =LEFT(VLOOKUP(Z11,$T$2:$U$44,2,0),FIND(" ",VLOOKUP(Z11,$T$2:$U$44,2,0))-1) -> Music | J11: Tcred. Credimas Bco. Cred | T11: 10 | U11: Music Junction | V11: 4311 Estes Ave. Glenwood, NE 28955 | Z11: =RANDBETWEEN(1,43) -> 18
B12: Corwick, Rob | C12: Plaza San Miguel | D12: DVD Calfex | E12: 1765 | F12: 2003-08-09 | G12: 17 | H12: =E12*G12 -> 30005 | I12: =LEFT(VLOOKUP(Z12,$T$2:$U$44,2,0),FIND(" ",VLOOKUP(Z12,$T$2:$U$44,2,0))-1) -> Andy | J12: T. Cred. Ripley | T12: 11 | U12: Chad Hawkes Family | V12: 55 Freedom Ln. Lakeland, NE 25611 | Z12: 23
B13: Wells, Jason | C13: Mega Plaza | D13: Licuadora Wormex 8 v. | E13: 68.7 | F13: 2003-09-14 | G13: 18 | H13: 1236.6 | I13: Vera | J13: Tcred. Ahorros Bco. Wiese | T13: 12 | U13: Midwest Music | V13: 10 Crawley Court Lyons, NE 43211 | Z13: 35
B14: Wells, Jason | C14: Comercial Arenales | D14: Horno Microonda "Rex" | E14: 232 | F14: 2003-07-16 | G14: 2 | H14: 464 | I14: Barbara | J14: T. Cred. Saga Falabella | T14: 13 | U14: Sidney Deans Family | V14: 55 Jacobs Circle Lincoln, NE 28911 | Z14: 21
B15: Aruda, Felice | C15: Caminos del Inca | D15: Lavadora Auto 120 PR | E15: 1114 | F15: 2003-10-26 | G15: 10 | H15: 11140 | I15: Nancy | J15: T.Cred. Metro | T15: 14 | U15: Cronkite Foundation | V15: 3400 Brockton Ave. New York, NY 99819 | Z15: 39
B16: Franklin, Larry | C16: Comercial Arenales | D16: Licuadora Wormex 8 v. | E16: 59.7 | F16: 2003-11-16 | G16: 18 | H16: 1074.6 | I16: Midwest | J16: Tcred. Personal Bco. Wiese | T16: 15 | U16: Westside Mall | V16: 870 Mall Road Lakeland, NE 22101 | Z16: 12
B17: Berwick, Sam | C17: Mega Plaza | D17: DVD Calfex | E17: 1939 | F17: 2003-07-29 | G17: 12 | H17: 23268 | I17: Miller's | J17: Tcred. Am.Exp Bco. Cred | T17: 16 | U17: Greenwood Bakery | V17: 3411 Lincoln Circle Lakeland, NE 22900 | Z17: 27
B18: Aruda, Felice | C18: Mega Plaza | D18: Cocina Royal 14 | E18: 779 | F18: 2003-09-13 | G18: 11 | H18: 8569 | I18: Andy | J18: Tcred. Credimas Bco. Cred | T18: 17 | U18: Ryan Kaufmann | V18: 669 Maple Rd. Lakeland, NE 25781 | Z18: 23
B19: Corwick, Rob | C19: Comercial Arenales | D19: Lavadora Auto 120 PR | E19: 1132 | F19: 2003-08-24 | G19: 9 | H19: 10188 | I19: Barbara | J19: Tcred. Dorada XP Bco. Cred | T19: 18 | U19: Music Group | V19: 590 Steepleton St. Stepforth, NE 28911 | Z19: 21
B20: Petry, Robin | C20: Mega Plaza | D20: Horno Microonda "Rex" | E20: 300 | F20: 2003-08-21 | G20: 6 | H20: 1800 | I20: Music | J20: Efectivo | T20: 19 | U20: National Endowment of the Arts | V20: 100 Capital Ave. Washington, DC 90010 | Z20: 18
B21: Kane, Sheryl | C21: Comercial Arenales | D21: Equipo de sonido 1200 W | E21: 981 | F21: 2003-10-15 | G21: 16 | H21: 15696 | I21: Kyle | J21: T. Cred. E Wong | T21: 20 | U21: Gary Michaels | V21: 9010 Gryst St. Lakeland, NE 22989 | Z21: 43
B22: Corwick, Rob | C22: Caminos del Inca | D22: DVD Boddometer | E22: 2343 | F22: 2003-08-11 | G22: 14 | H22: 32802 | I22: Joan | J22: Tcred. Credimas Bco. Cred | T22: 21 | U22: Barbara Snell | V22: 411 Dickson Ave. Lakeland, NE 22871 | Z22: 32
B23: Corwick, Rob | C23: Jockey Plaza | D23: Equipo de sonido 1200 W | E23: 1765 | F23: 2003-06-14 | G23: 7 | H23: 12355 | I23: Kyle | J23: T. Cred. Plaza Vea | T23: 22 | U23: Linda Snell | V23: 411 Dickson Ave. Lakeland, NE 22871 | Z23: 43
B24: Aruda, Felice | C24: Jockey Plaza | D24: Licuadora Wormex 8 v. | E24: 44.9 | F24: 2003-11-03 | G24: 17 | H24: 763.3 | I24: Lakeland | J24: T. Cred. Plaza Vea | T24: 23 | U24: Andy Ramirez | V24: 490 Conroy Ln. Lakeland, NE 28712 | Z24: 38
B25: Berwick, Sam | C25: Plaza San Miguel | D25: Equipo de sonido 1200 W | E25: 768 | F25: 2003-09-26 | G25: 18 | H25: 13824 | I25: Lakeland | J25: T. Cred. Ripley | T25: 24 | U25: Kevin Karls | V25: 68 E. Main St. Stepforth, NE 28920 | Z25: 40
B26: Franklin, Larry | C26: Caminos del Inca | D26: Lavadora Auto 120 PR | E26: 951 | F26: 2003-06-20 | G26: 11 | H26: 10461 | I26: Lakeland | J26: Tcred. Am.Exp Bco. Conti | T26: 25 | U26: Phipps Auto | V26: 5 Apple Ln. Lakeland, NE 28919 | Z26: 5
B27: Dorfberg, Jeremy | C27: Comercial Arenales | D27: Horno Microonda "Rex" | E27: 176 | F27: 2003-08-04 | G27: 9 | H27: 1584 | I27: Joan | J27: Tcred. Am.Exp Bco. Interbanc | T27: 26 | U27: Gallery 510 | V27: 44 Wilton St. Lakeland, NE 29811 | Z27: 32
B28: Mueller, Ursula | C28: Plaza San Miguel | D28: Cocina Royal 14 | E28: 1162 | F28: 2003-07-16 | G28: 19 | H28: 22078 | I28: Linda | J28: T. Cred. E Wong | T28: 27 | U28: Miller's Grocery | V28: 211 Avalon Ave. Stepforth, NE 28925 | Z28: 8
B29: Franklin, Larry | C29: Jockey Plaza | D29: Refrigeradoras 12 p3 | E29: 1321 | F29: 2003-09-29 | G29: 17 | H29: 22457 | I29: Midwest | J29: Tcred. Am.Exp Bco. Interbanc | T29: 28 | U29: Cindy Alvarez | V29: 44 N. Laughton St. Stepforth, NE 28915 | Z29: 12
B30: Berwick, Sam | C30: Plaza San Miguel | D30: DVD Boddometer | E30: 1760 | F30: 2003-11-05 | G30: 11 | H30: 19360 | I30: Barry | J30: Tcred. Dorada Bco. Interbanc | T30: 29 | U30: Juan Williams | V30: 89 W. Main St. Stepforth, NE 28911 | Z30: 7
B31: Wells, Jason | C31: Caminos del Inca | D31: Refrigeradoras 12 p3 | E31: 1310 | F31: 2003-07-10 | G31: 14 | H31: 18340 | I31: Stepforth | J31: Tcred. Am.Exp Bco. Cred | T31: 30 | U31: Terry's Gifts | V31: 800 N. Carls St. Lakeland, NE 28888 | Z31: 33
B32: Berwick, Sam | C32: Plaza San Miguel | D32: DVD Boddometer | E32: 1070 | F32: 2003-06-30 | G32: 15 | H32: 16050 | I32: Music | J32: Efectivo | T32: 31 | U32: Howard Lee | V32: 325 W. Main St. Stepforth, NE 28918 | Z32: 34
B33: Corwick, Rob | C33: Plaza San Miguel | D33: Cocina Royal 14 | E33: 715 | F33: 2003-08-16 | G33: 13 | H33: 9295 | I33: Nebraskan | J33: Tcred. Am.Exp Bco. Conti | T33: 32 | U33: Joan Smith | V33: 825 Dickson Ave. Lakeland, NE 22871 | Z33: 42
B34: Aruda, Felice | C34: Comercial Arenales | D34: Horno Microonda "Rex" | E34: 269 | F34: 2003-10-24 | G34: 8 | H34: 2152 | I34: Greenwood | J34: T. Cred. Ripley | T34: 33 | U34: Stepforth Hardware | V34: 911 Lincon Circle Stepforth, NE 28712 | Z34: 16
B35: Berwick, Sam | C35: Caminos del Inca | D35: DVD Boddometer | E35: 1456 | F35: 2003-07-20 | G35: 7 | H35: 10192 | I35: Music | J35: Tcred. Am.Exp Bco. Conti | T35: 34 | U35: Music Store | V35: 55 E. Main St.Stepforth, NE 29811 | Z35: 34
B36: Corwick, Rob | C36: Mega Plaza | D36: Refrigeradoras 12 p3 | E36: 2266 | F36: 2003-09-21 | G36: 18 | H36: 40788 | I36: Toy | J36: Tcred. Personal Bco. Wiese | T36: 35 | U36: Vera Ulanger | V36: 42 S. Jasper Ave.Glenwood, NE 21128 | Z36: 9
B37: Mueller, Ursula | C37: Caminos del Inca | D37: Cocina Royal 14 | E37: 1200 | F37: 2003-09-05 | G37: 15 | H37: 18000 | I37: Howard | J37: T. Cred. Saga Falabella | T37: 36 | U37: Thomas Kemp | V37: 7822 Harvard Ln. Lakeland, NE 29098 | Z37: 31
B38: Aruda, Felice | C38: Caminos del Inca | D38: Equipo de sonido 1200 W | E38: 783 | F38: 2003-06-15 | G38: 16 | H38: 12528 | I38: Gary | J38: Tcred. Ahorros Bco. Conti | T38: 37 | U38: Sally Breaux Family | V38: 3121 Greisen St. Lakeland, NE 28561 | Z38: 20
B39: Dorfberg, Jeremy | C39: Plaza San Miguel | D39: Licuadora Wormex 8 v. | E39: 70.2 | F39: 2003-09-16 | G39: 16 | H39: 1123.2 | I39: Cronkite | J39: Tcred. Dorada XP Bco. Cred | T39: 38 | U39: Lakeland Lanes | V39: 4310 Harvard Ln. Lakeland, NE 26899 | Z39: 14
B40: Aruda, Felice | C40: Jockey Plaza | D40: DVD Calfex | E40: 2272 | F40: 2003-08-18 | G40: 19 | H40: 43168 | I40: Cronkite | J40: T. Cred. Saga Falabella | T40: 39 | U40: Nancy Yi | V40: 40 Kinder Ave. Lakeland, NE 22891 | Z40: 14
B41: Wells, Jason | C41: Plaza San Miguel | D41: Refrigeradoras 12 p3 | E41: 1893 | F41: 2003-07-16 | G41: 15 | H41: 28395 | I41: Barbara | J41: Tcred. Credimas Bco. Cred | T41: 40 | U41: Lakeland Gifts | V41: 89 Mall Ave. Lakeland, NE 29877 | Z41: 21
B42: Wells, Jason | C42: Caminos del Inca | D42: Lavadora Auto 120 PR | E42: 835 | F42: 2003-07-01 | G42: 7 | H42: 5845 | I42: Terry's | J42: T.Cred. Metro | T42: 41 | U42: Mitchell Maazel | V42: 564 Jasper St. Lakeland, NE 27888 | Z42: 30
B43: Wells, Jason | C43: Plaza San Miguel | D43: Equipo de sonido 1200 W | E43: 2191 | F43: 2003-08-13 | G43: 8 | H43: 17528 | I43: Lakeland | J43: T.Cred. Metro | T43: 42 | U43: Nebraskan Arts Foundation | V43: 988 Greene St. Lincoln, NE 22002 | Z43: 38
B44: Asonte, Toni | C44: Mega Plaza | D44: DVD Calfex | E44: 491 | F44: 2003-08-31 | G44: 14 | H44: 6874 | I44: Lakeland | J44: Tcred. Am.Exp Bco. Interbanc | T44: 43 | U44: Kyle Keel | V44: 87 E. Main St. Stepforth, NE 29810 | Z44: 3
B45: Asonte, Toni | C45: Jockey Plaza | D45: DVD Calfex | E45: 1987 | F45: 2003-06-18 | G45: 7 | H45: 13909 | I45: Linda | J45: T. Cred. Plaza Vea | Z45: 22
B46: Kane, Sheryl | C46: Caminos del Inca | D46: Refrigeradoras 12 p3 | E46: 2294 | F46: 2003-06-10 | G46: 19 | H46: 43586 | I46: Westside | J46: Tcred. Personal Bco. Wiese | Z46: 15
B47: Berwick, Sam | C47: Plaza San Miguel | D47: Horno Microonda "Rex" | E47: 172 | F47: 2003-10-11 | G47: 2 | H47: 344 | I47: Chad | J47: Tcred. Dorada Bco. Interbanc | Z47: 11
B48: Corwick, Rob | C48: Mega Plaza | D48: Lavadora Auto 120 PR | E48: 1135 | F48: 2003-11-15 | G48: 4 | H48: 4540 | I48: Kevin | J48: Tcred. Am.Exp Bco. Conti | Z48: 24
B49: Mueller, Ursula | C49: Plaza San Miguel | D49: Lavadora Auto 120 PR | E49: 1120 | F49: 2003-08-22 | G49: 8 | H49: 8960 | I49: Kyle | J49: T. Cred. Saga Falabella | Z49: 43
B50: Kane, Sheryl | C50: Caminos del Inca | D50: Licuadora Wormex 8 v. | E50: 71.1 | F50: 2003-11-05 | G50: 20 | H50: 1422 | I50: Greenwood | J50: Tcred. Credimas Bco. Cred | Z50: 16
B51: Berwick, Sam | C51: Caminos del Inca | D51: Horno Microonda "Rex" | E51: 263 | F51: 2003-06-22 | G51: 12 | H51: 3156 | I51: Thomas | J51: Tcred. Am.Exp Bco. Interbanc | Z51: 36
B52: Franklin, Larry | C52: Mega Plaza | D52: DVD Boddometer | E52: 893 | F52: 2003-10-06 | G52: 7 | H52: 6251 | I52: Kyle | J52: Tcred. Am.Exp Bco. Conti | Z52: 43
B53: Wells, Jason | C53: Plaza San Miguel | D53: DVD Boddometer | E53: 978 | F53: 2003-09-22 | G53: 18 | H53: 17604 | I53: Lakeland | J53: Tcred. Credimas Bco. Cred | Z53: 40
B54: Corwick, Rob | C54: Jockey Plaza | D54: Refrigeradoras 12 p3 | E54: 1843 | F54: 2003-11-07 | G54: 3 | H54: 5529 | I54: Andy | J54: T. Cred. Saga Falabella | Z54: 23
B55: Berwick, Sam | C55: Mega Plaza | D55: Horno Microonda "Rex" | E55: 175 | F55: 2003-09-08 | G55: 17 | H55: 2975 | I55: Lakeland | J55: Efectivo | Z55: 40
B56: Aruda, Felice | C56: Plaza San Miguel | D56: DVD Boddometer | E56: 860 | F56: 2003-09-04 | G56: 6 | H56: 5160 | I56: Vera | J56: Tcred. Credimas Bco. Cred | Z56: 35
B57: Berwick, Sam | C57: Plaza San Miguel | D57: Cocina Royal 14 | E57: 697 | F57: 2003-08-11 | G57: 7 | H57: 4879 | I57: Barry | J57: Tcred. Am.Exp Bco. Cred | Z57: 7
B58: Wells, Jason | C58: Caminos del Inca | D58: Cocina Royal 14 | E58: 852 | F58: 2003-09-21 | G58: 10 | H58: 8520 | I58: Mitchell | J58: T. Cred. Ripley | Z58: 41
B59: Dorfberg, Jeremy | C59: Jockey Plaza | D59: Equipo de sonido 1200 W | E59: 902 | F59: 2003-06-11 | G59: 9 | H59: 8118 | I59: Greenwood | J59: Tcred. Am.Exp Bco. Cred | Z59: 16
B60: Mueller, Ursula | C60: Comercial Arenales | D60: Cocina Royal 14 | E60: 781 | F60: 2003-06-20 | G60: 3 | H60: 2343 | I60: Lakeland | J60: Tcred. Am.Exp Bco. Wiese | Z60: 38
B61: Aruda, Felice | C61: Jockey Plaza | D61: DVD Calfex | E61: 879 | F61: 2003-07-24 | G61: 20 | H61: 17580 | I61: Nebraskan | J61: Tcred. Personal Bco. Wiese | Z61: 42
B62: Petry, Robin | C62: Caminos del Inca | D62: Equipo de sonido 1200 W | E62: 682 | F62: 2003-08-15 | G62: 14 | H62: 9548 | I62: Linda | J62: Tcred. Am.Exp Bco. Cred | Z62: 8
B63: Kane, Sheryl | C63: Caminos del Inca | D63: DVD Boddometer | E63: 921 | F63: 2003-10-16 | G63: 10 | H63: 9210 | I63: Mitchell | J63: Tcred. Ahorros Bco. Conti | Z63: 41
B64: Aruda, Felice | C64: Plaza San Miguel | D64: Licuadora Wormex 8 v. | E64: 78.9 | F64: 2003-10-29 | G64: 10 | H64: 789 | I64: Lakeland | J64: Tcred. Am.Exp Bco. Conti | Z64: 5
B65: Kane, Sheryl | C65: Caminos del Inca | D65: Cocina Royal 14 | E65: 1134 | F65: 2003-09-02 | G65: 5 | H65: 5670 | I65: Midwest | J65: T. Cred. Plaza Vea | Z65: 12
B66: Corwick, Rob | C66: Caminos del Inca | D66: Equipo de sonido 1200 W | E66: 1691 | F66: 2003-07-06 | G66: 6 | H66: 10146 | I66: Mitchell | J66: Tcred. Ahorros Bco. Wiese | Z66: 41
B67: Asonte, Toni | C67: Plaza San Miguel | D67: Licuadora Wormex 8 v. | E67: 79.8 | F67: 2003-11-19 | G67: 15 | H67: 1197 | I67: Ryan | J67: Tcred. Am.Exp Bco. Wiese | Z67: 17
B68: Mueller, Ursula | C68: Mega Plaza | D68: Horno Microonda "Rex" | E68: 273 | F68: 2003-08-20 | G68: 6 | H68: 1638 | I68: Music | J68: Efectivo | Z68: 18
B69: Kane, Sheryl | C69: Comercial Arenales | D69: Horno Microonda "Rex" | E69: 225 | F69: 2003-07-14 | G69: 14 | H69: 3150 | I69: Phipps | J69: Tcred. Credimas Bco. Cred | Z69: 25
B70: Corwick, Rob | C70: Comercial Arenales | D70: Horno Microonda "Rex" | E70: 176 | F70: 2003-11-01 | G70: 3 | H70: 528 | I70: Kyle | J70: Tcred. Am.Exp Bco. Interbanc | Z70: 43
B71: Corwick, Rob | C71: Plaza San Miguel | D71: Licuadora Wormex 8 v. | E71: 66.4 | F71: 2003-09-02 | G71: 13 | H71: 863.2 | I71: Whole | J71: T. Cred. Plaza Vea | Z71: 4
B72: Petry, Robin | C72: Jockey Plaza | D72: Horno Microonda "Rex" | E72: 172 | F72: 2003-08-15 | G72: 2 | H72: 344 | I72: Whole | J72: Tcred. Dorada Bco. Interbanc | Z72: 4
B73: Petry, Robin | C73: Jockey Plaza | D73: Refrigeradoras 12 p3 | E73: 1771 | F73: 2003-09-17 | G73: 14 | H73: 24794 | I73: Barbara | J73: Tcred. Dorada XP Bco. Cred | Z73: 21
B74: Corwick, Rob | C74: Mega Plaza | D74: Equipo de sonido 1200 W | E74: 933 | F74: 2003-08-18 | G74: 15 | H74: 13995 | I74: Lakeland | J74: T. Cred. Ripley | Z74: 40
B75: Franklin, Larry | C75: Jockey Plaza | D75: Licuadora Wormex 8 v. | E75: =IF(LEFT(D75,2)="Li",RANDBETWEEN(300,800)/10,IF(LEFT(D75,2)="Ho",RANDBETWEEN(160,320),IF(LEFT(D75,2)="La",RANDBETWEEN(800,1200),IF(LEFT(D75,2)="Co",RANDBETWEEN(640,1200),RANDBETWEEN(460,2440))))) -> 32.8 | F75: 2003-09-11 | G75: 19 | H75: =E75*G75 -> 623.2 | I75: Cindy | J75: Tcred. Am.Exp Bco. Cred | Z75: =RANDBETWEEN(1,43) -> 28
B76: Wells, Jason | C76: Jockey Plaza | D76: Equipo de sonido 1200 W | E76: 1060 | F76: 2003-08-18 | G76: 9 | H76: 9540 | I76: =LEFT(VLOOKUP(Z76,$T$2:$U$44,2,0),FIND(" ",VLOOKUP(Z76,$T$2:$U$44,2,0))-1) -> Toy | J76: Tcred. Dorada XP Bco. Cred | Z76: 9
B77: Mueller, Ursula | C77: Jockey Plaza | D77: Licuadora Wormex 8 v. | E77: 72.7 | F77: 2003-09-19 | G77: 7 | H77: 508.9 | I77: Chad | J77: Tcred. Personal Bco. Wiese | Z77: 11
B78: Kane, Sheryl | C78: Comercial Arenales | D78: DVD Boddometer | E78: 1729 | F78: 2003-07-14 | G78: 15 | H78: 25935 | I78: Joan | J78: T. Cred. Ripley | Z78: 32
B79: Petry, Robin | C79: Caminos del Inca | D79: DVD Calfex | E79: 463 | F79: 2003-07-30 | G79: 10 | H79: 4630 | I79: Mitchell | J79: Tcred. Credimas Bco. Cred | Z79: 41
B80: Asonte, Toni | C80: Comercial Arenales | D80: Refrigeradoras 12 p3 | E80: 2250 | F80: 2003-10-03 | G80: 18 | H80: 40500 | I80: David | J80: Tcred. Am.Exp Bco. Cred | Z80: 1
B81: Wells, Jason | C81: Caminos del Inca | D81: Equipo de sonido 1200 W | E81: 1049 | F81: 2003-09-16 | G81: 8 | H81: 8392 | I81: Gary | J81: Tcred. Credimas Bco. Cred | Z81: 20
B82: Asonte, Toni | C82: Caminos del Inca | D82: Horno Microonda "Rex" | E82: 282 | F82: 2003-07-20 | G82: 7 | H82: 1974 | I82: Joan | J82: Tcred. Am.Exp Bco. Wiese | Z82: 32
B83: Wells, Jason | C83: Plaza San Miguel | D83: DVD Boddometer | E83: 1216 | F83: 2003-08-29 | G83: 4 | H83: 4864 | I83: Music | J83: Efectivo | Z83: 10
B84: Mueller, Ursula | C84: Plaza San Miguel | D84: Horno Microonda "Rex" | E84: 165 | F84: 2003-07-10 | G84: 12 | H84: 1980 | I84: Joan | J84: Efectivo | Z84: 32
B85: Asonte, Toni | C85: Caminos del Inca | D85: Refrigeradoras 12 p3 | E85: 1180 | F85: 2003-06-19 | G85: 6 | H85: 7080 | I85: Andy | J85: T.Cred. Metro | Z85: 23
B86: Kane, Sheryl | C86: Mega Plaza | D86: Equipo de sonido 1200 W | E86: 834 | F86: 2003-08-16 | G86: 12 | H86: 10008 | I86: Barry | J86: Tcred. Ahorros Bco. Wiese | Z86: 7
B87: Kane, Sheryl | C87: Plaza San Miguel | D87: Cocina Royal 14 | E87: 677 | F87: 2003-09-01 | G87: 20 | H87: 13540 | I87: Barbara | J87: Tcred. Am.Exp Bco. Cred | Z87: 21
B88: Corwick, Rob | C88: Comercial Arenales | D88: Licuadora Wormex 8 v. | E88: 31.2 | F88: 2003-08-30 | G88: 19 | H88: 592.8 | I88: Ryan | J88: Tcred. Am.Exp Bco. Cred | Z88: 17
B89: Corwick, Rob | C89: Caminos del Inca | D89: DVD Boddometer | E89: 2423 | F89: 2003-09-06 | G89: 10 | H89: 24230 | I89: Kyle | J89: T.Cred. Metro | Z89: 43
B90: Kane, Sheryl | C90: Jockey Plaza | D90: Lavadora Auto 120 PR | E90: 999 | F90: 2003-07-02 | G90: 13 | H90: 12987 | I90: Ryan | J90: T. Cred. Saga Falabella | Z90: 17
B91: Kane, Sheryl | C91: Plaza San Miguel | D91: Equipo de sonido 1200 W | E91: 2414 | F91: 2003-07-11 | G91: 14 | H91: 33796 | I91: Gallery | J91: Tcred. Am.Exp Bco. Wiese | Z91: 26
B92: Corwick, Rob | C92: Jockey Plaza | D92: Horno Microonda "Rex" | E92: 300 | F92: 2003-09-23 | G92: 20 | H92: 6000 | I92: Thomas | J92: Tcred. Credimas Bco. Cred | Z92: 36
B93: Wells, Jason | C93: Caminos del Inca | D93: Licuadora Wormex 8 v. | E93: 78 | F93: 2003-10-13 | G93: 11 | H93: 858 | I93: Stepforth | J93: Tcred. Am.Exp Bco. Conti | Z93: 33
B94: Berwick, Sam | C94: Comercial Arenales | D94: Lavadora Auto 120 PR | E94: 1200 | F94: 2003-09-24 | G94: 17 | H94: 20400 | I94: Music | J94: Tcred. Personal Bco. Wiese | Z94: 34
B95: Petry, Robin | C95: Plaza San Miguel | D95: Refrigeradoras 12 p3 | E95: 1449 | F95: 2003-06-18 | G95: 17 | H95: 24633 | I95: Whole | J95: T.Cred. Metro | Z95: 4
B96: Corwick, Rob | C96: Jockey Plaza | D96: DVD Calfex | E96: 870 | F96: 2003-08-18 | G96: 5 | H96: 4350 | I96: Cronkite | J96: T. Cred. Plaza Vea | Z96: 14
B97: Petry, Robin | C97: Plaza San Miguel | D97: Horno Microonda "Rex" | E97: 230 | F97: 2003-09-04 | G97: 17 | H97: 3910 | I97: Andy | J97: Tcred. Personal Bco. Wiese | Z97: 23
B98: Aruda, Felice | C98: Plaza San Miguel | D98: Refrigeradoras 12 p3 | E98: 1419 | F98: 2003-09-22 | G98: 5 | H98: 7095 | I98: Juan | J98: T. Cred. Saga Falabella | Z98: 29
B99: Asonte, Toni | C99: Comercial Arenales | D99: Cocina Royal 14 | E99: 1033 | F99: 2003-06-23 | G99: 1 | H99: 1033 | I99: Whole | J99: Tcred. Am.Exp Bco. Conti | Z99: 4
B100: Petry, Robin | C100: Plaza San Miguel | D100: DVD Calfex | E100: 1413 | F100: 2003-10-24 | G100: 4 | H100: 5652 | I100: Mitchell | J100: Efectivo | Z100: 41
B101: Aruda, Felice | C101: Jockey Plaza | D101: DVD Boddometer | E101: 1605 | F101: 2003-11-10 | G101: 16 | H101: 25680 | I101: Music | J101: Tcred. Ahorros Bco. Conti | Z101: 34
B102: Petry, Robin | C102: Jockey Plaza | D102: Lavadora Auto 120 PR | E102: 1039 | F102: 2003-10-09 | G102: 11 | H102: 11429 | I102: Lakeland | J102: Tcred. Personal Bco. Wiese | Z102: 3
B103: Corwick, Rob | C103: Plaza San Miguel | D103: Equipo de sonido 1200 W | E103: 634 | F103: 2003-09-26 | G103: 5 | H103: 3170 | I103: Sidney | J103: Tcred. Am.Exp Bco. Conti | Z103: 13
B104: Franklin, Larry | C104: Mega Plaza | D104: DVD Calfex | E104: 1800 | F104: 2003-10-13 | G104: 15 | H104: 27000 | I104: Music | J104: Tcred. Am.Exp Bco. Cred | Z104: 18
B105: Wells, Jason | C105: Jockey Plaza | D105: DVD Calfex | E105: 911 | F105: 2003-09-10 | G105: 19 | H105: 17309 | I105: Juan | J105: Tcred. Am.Exp Bco. Interbanc | Z105: 29
B106: Kane, Sheryl | C106: Mega Plaza | D106: Cocina Royal 14 | E106: 1012 | F106: 2003-09-30 | G106: 11 | H106: 11132 | I106: Toy | J106: T. Cred. E Wong | Z106: 9
B107: Kane, Sheryl | C107: Mega Plaza | D107: Equipo de sonido 1200 W | E107: 1762 | F107: 2003-07-12 | G107: 13 | H107: 22906 | I107: Greenwood | J107: T. Cred. Saga Falabella | Z107: 16
B108: Asonte, Toni | C108: Comercial Arenales | D108: Horno Microonda "Rex" | E108: 249 | F108: 2003-10-31 | G108: 6 | H108: 1494 | I108: Karri | J108: Tcred. Ahorros Bco. Conti | Z108: 2
B109: Kane, Sheryl | C109: Jockey Plaza | D109: DVD Calfex | E109: 2394 | F109: 2003-07-24 | G109: 11 | H109: 26334 | I109: Sally | J109: Tcred. Ahorros Bco. Conti | Z109: 37
B110: Petry, Robin | C110: Plaza San Miguel | D110: Refrigeradoras 12 p3 | E110: 894 | F110: 2003-07-30 | G110: 15 | H110: 13410 | I110: Ryan | J110: Tcred. Dorada XP Bco. Cred | Z110: 17
B111: Petry, Robin | C111: Jockey Plaza | D111: DVD Boddometer | E111: 628 | F111: 2003-07-26 | G111: 2 | H111: 1256 | I111: Joan | J111: Tcred. Am.Exp Bco. Cred | Z111: 32
B112: Petry, Robin | C112: Plaza San Miguel | D112: Refrigeradoras 12 p3 | E112: 2304 | F112: 2003-11-19 | G112: 8 | H112: 18432 | I112: Phipps | J112: T. Cred. Ripley | Z112: 25
B113: Asonte, Toni | C113: Plaza San Miguel | D113: Lavadora Auto 120 PR | E113: 1043 | F113: 2003-07-28 | G113: 5 | H113: 5215 | I113: Cindy | J113: Efectivo | Z113: 28
B114: Petry, Robin | C114: Comercial Arenales | D114: Lavadora Auto 120 PR | E114: 1145 | F114: 2003-09-01 | G114: 14 | H114: 16030 | I114: Sidney | J114: Tcred. Ahorros Bco. Conti | Z114: 13
B115: Petry, Robin | C115: Plaza San Miguel | D115: Licuadora Wormex 8 v. | E115: 74.7 | F115: 2003-09-04 | G115: 10 | H115: 747 | I115: Midwest | J115: T. Cred. E Wong | Z115: 12
B116: Berwick, Sam | C116: Caminos del Inca | D116: Cocina Royal 14 | E116: 1089 | F116: 2003-07-05 | G116: 14 | H116: 15246 | I116: Kyle | J116: Tcred. Personal Bco. Wiese | Z116: 43
B117: Kane, Sheryl | C117: Jockey Plaza | D117: Equipo de sonido 1200 W | E117: 1444 | F117: 2003-10-03 | G117: 19 | H117: 27436 | I117: Midwest | J117: Tcred. Am.Exp Bco. Wiese | Z117: 12
B118: Wells, Jason | C118: Plaza San Miguel | D118: Equipo de sonido 1200 W | E118: 1335 | F118: 2003-11-01 | G118: 12 | H118: 16020 | I118: Chad | J118: Tcred. Am.Exp Bco. Wiese | Z118: 11
B119: Berwick, Sam | C119: Caminos del Inca | D119: Licuadora Wormex 8 v. | E119: 55 | F119: 2003-11-18 | G119: 6 | H119: 330 | I119: Lakeland | J119: T. Cred. Saga Falabella | Z119: 38
B120: Wells, Jason | C120: Mega Plaza | D120: Equipo de sonido 1200 W | E120: 2203 | F120: 2003-07-09 | G120: 4 | H120: 8812 | I120: Vera | J120: T. Cred. E Wong | Z120: 35
B121: Kane, Sheryl | C121: Comercial Arenales | D121: DVD Calfex | E121: 879 | F121: 2003-11-14 | G121: 19 | H121: 16701 | I121: Lakeland | J121: Efectivo | Z121: 38
B122: Franklin, Larry | C122: Jockey Plaza | D122: DVD Boddometer | E122: 2167 | F122: 2003-07-30 | G122: 9 | H122: 19503 | I122: Chad | J122: Tcred. Am.Exp Bco. Cred | Z122: 11
B123: Mueller, Ursula | C123: Jockey Plaza | D123: Refrigeradoras 12 p3 | E123: 1726 | F123: 2003-08-17 | G123: 12 | H123: 20712 | I123: Sidney | J123: T. Cred. Plaza Vea | Z123: 13
B124: Berwick, Sam | C124: Jockey Plaza | D124: Horno Microonda "Rex" | E124: 287 | F124: 2003-10-06 | G124: 8 | H124: 2296 | I124: Lakeland | J124: Tcred. Am.Exp Bco. Cred | Z124: 40
B125: Kane, Sheryl | C125: Plaza San Miguel | D125: Cocina Royal 14 | E125: 880 | F125: 2003-08-07 | G125: 15 | H125: 13200 | I125: Stepforth | J125: Tcred. Credimas Bco. Cred | Z125: 33
B126: Dorfberg, Jeremy | C126: Mega Plaza | D126: Cocina Royal 14 | E126: 1041 | F126: 2003-09-28 | G126: 13 | H126: 13533 | I126: Nebraskan | J126: Tcred. Am.Exp Bco. Cred | Z126: 42
B127: Wells, Jason | C127: Comercial Arenales | D127: Licuadora Wormex 8 v. | E127: 43.4 | F127: 2003-07-04 | G127: 6 | H127: 260.4 | I127: Miller's | J127: Tcred. Dorada XP Bco. Cred | Z127: 27
B128: Kane, Sheryl | C128: Jockey Plaza | D128: Cocina Royal 14 | E128: 751 | F128: 2003-08-10 | G128: 17 | H128: 12767 | I128: Cronkite | J128: Tcred. Dorada Bco. Interbanc | Z128: 14
B129: Asonte, Toni | C129: Comercial Arenales | D129: Licuadora Wormex 8 v. | E129: 72.9 | F129: 2003-10-14 | G129: 20 | H129: 1458 | I129: Lakeland | J129: Efectivo | Z129: 40
B130: Mueller, Ursula | C130: Comercial Arenales | D130: DVD Calfex | E130: 1129 | F130: 2003-09-23 | G130: 19 | H130: 21451 | I130: Lakeland | J130: Tcred. Am.Exp Bco. Wiese | Z130: 40
B131: Wells, Jason | C131: Mega Plaza | D131: Licuadora Wormex 8 v. | E131: 32.1 | F131: 2003-09-16 | G131: 5 | H131: 160.5 | I131: Whole | J131: T.Cred. Metro | Z131: 4
B132: Corwick, Rob | C132: Plaza San Miguel | D132: Refrigeradoras 12 p3 | E132: 1914 | F132: 2003-08-04 | G132: 3 | H132: 5742 | I132: Gallery | J132: Tcred. Credimas Bco. Cred | Z132: 26
B133: Berwick, Sam | C133: Comercial Arenales | D133: Refrigeradoras 12 p3 | E133: 882 | F133: 2003-11-08 | G133: 18 | H133: 15876 | I133: Karri | J133: T.Cred. Metro | Z133: 2
B134: Corwick, Rob | C134: Plaza San Miguel | D134: Licuadora Wormex 8 v. | E134: 48.9 | F134: 2003-09-18 | G134: 20 | H134: 978 | I134: Nebraskan | J134: T. Cred. E Wong | Z134: 42
B135: Asonte, Toni | C135: Mega Plaza | D135: DVD Boddometer | E135: 2094 | F135: 2003-07-16 | G135: 3 | H135: 6282 | I135: Barbara | J135: Tcred. Personal Bco. Wiese | Z135: 21
B136: Franklin, Larry | C136: Plaza San Miguel | D136: Lavadora Auto 120 PR | E136: 1078 | F136: 2003-08-07 | G136: 10 | H136: 10780 | I136: Westside | J136: T. Cred. E Wong | Z136: 15
B137: Kane, Sheryl | C137: Plaza San Miguel | D137: DVD Boddometer | E137: 924 | F137: 2003-08-21 | G137: 4 | H137: 3696 | I137: Sally | J137: T.Cred. Metro | Z137: 37
B138: Berwick, Sam | C138: Caminos del Inca | D138: Equipo de sonido 1200 W | E138: 2397 | F138: 2003-07-03 | G138: 11 | H138: 26367 | I138: Greenwood | J138: T. Cred. E Wong | Z138: 16
B139: Corwick, Rob | C139: Mega Plaza | D139: Equipo de sonido 1200 W | E139: =IF(LEFT(D139,2)="Li",RANDBETWEEN(300,800)/10,IF(LEFT(D139,2)="Ho",RANDBETWEEN(160,320),IF(LEFT(D139,2)="La",RANDBETWEEN(800,1200),IF(LEFT(D139,2)="Co",RANDBETWEEN(640,1200),RANDBETWEEN(460,2440))))) -> 1158 | F139: 2003-09-29 | G139: 10 | H139: =E139*G139 -> 11580 | I139: Nebraska | J139: Tcred. Am.Exp Bco. Cred | Z139: =RANDBETWEEN(1,43) -> 6
B140: Petry, Robin | C140: Plaza San Miguel | D140: Lavadora Auto 120 PR | E140: 1023 | F140: 2003-06-23 | G140: 16 | H140: 16368 | I140: =LEFT(VLOOKUP(Z140,$T$2:$U$44,2,0),FIND(" ",VLOOKUP(Z140,$T$2:$U$44,2,0))-1) -> Cronkite | J140: T. Cred. Ripley | Z140: 14
B141: Kane, Sheryl | C141: Plaza San Miguel | D141: Horno Microonda "Rex" | E141: 211 | F141: 2003-06-17 | G141: 18 | H141: 3798 | I141: Lakeland | J141: Tcred. Am.Exp Bco. Wiese | Z141: 40
B142: Mueller, Ursula | C142: Plaza San Miguel | D142: Cocina Royal 14 | E142: 1158 | F142: 2003-10-26 | G142: 20 | H142: 23160 | I142: Howard | J142: Tcred. Dorada XP Bco. Cred | Z142: 31
B143: Asonte, Toni | C143: Caminos del Inca | D143: Refrigeradoras 12 p3 | E143: 2341 | F143: 2003-08-29 | G143: 5 | H143: 11705 | I143: Westside | J143: Tcred. Ahorros Bco. Conti | Z143: 15
B144: Franklin, Larry | C144: Jockey Plaza | D144: Refrigeradoras 12 p3 | E144: 1222 | F144: 2003-10-19 | G144: 9 | H144: 10998 | I144: Nebraska | J144: T. Cred. E Wong | Z144: 6
B145: Wells, Jason | C145: Jockey Plaza | D145: Horno Microonda "Rex" | E145: 262 | F145: 2003-08-13 | G145: 17 | H145: 4454 | I145: Nancy | J145: Tcred. Dorada XP Bco. Cred | Z145: 39
B146: Aruda, Felice | C146: Plaza San Miguel | D146: DVD Boddometer | E146: 2179 | F146: 2003-09-18 | G146: 1 | H146: 2179 | I146: Linda | J146: Tcred. Dorada Bco. Interbanc | Z146: 8
B147: Aruda, Felice | C147: Mega Plaza | D147: Lavadora Auto 120 PR | E147: 1110 | F147: 2003-09-07 | G147: 8 | H147: 8880 | I147: Terry's | J147: Tcred. Ahorros Bco. Conti | Z147: 30
B148: Dorfberg, Jeremy | C148: Plaza San Miguel | D148: Refrigeradoras 12 p3 | E148: 2066 | F148: 2003-10-14 | G148: 4 | H148: 8264 | I148: Gallery | J148: Tcred. Am.Exp Bco. Interbanc | Z148: 26
B149: Kane, Sheryl | C149: Comercial Arenales | D149: DVD Calfex | E149: 1811 | F149: 2003-09-18 | G149: 10 | H149: 18110 | I149: Phipps | J149: Tcred. Am.Exp Bco. Interbanc | Z149: 25
B150: Asonte, Toni | C150: Caminos del Inca | D150: DVD Calfex | E150: 1975 | F150: 2003-10-03 | G150: 14 | H150: 27650 | I150: Gary | J150: Tcred. Ahorros Bco. Wiese | Z150: 20
B151: Dorfberg, Jeremy | C151: Comercial Arenales | D151: Horno Microonda "Rex" | E151: 213 | F151: 2003-08-23 | G151: 15 | H151: 3195 | I151: Linda | J151: Tcred. Am.Exp Bco. Conti | Z151: 22
B152: Corwick, Rob | C152: Plaza San Miguel | D152: Lavadora Auto 120 PR | E152: 981 | F152: 2003-06-14 | G152: 13 | H152: 12753 | I152: Mitchell | J152: T. Cred. E Wong | Z152: 41
B153: Kane, Sheryl | C153: Comercial Arenales | D153: Equipo de sonido 1200 W | E153: 1541 | F153: 2003-06-12 | G153: 5 | H153: 7705 | I153: Mitchell | J153: T.Cred. Metro | Z153: 41
B154: Kane, Sheryl | C154: Comercial Arenales | D154: Cocina Royal 14 | E154: 772 | F154: 2003-10-20 | G154: 16 | H154: 12352 | I154: Lakeland | J154: T. Cred. E Wong | Z154: 5
B155: Asonte, Toni | C155: Caminos del Inca | D155: Lavadora Auto 120 PR | E155: 935 | F155: 2003-08-11 | G155: 3 | H155: 2805 | I155: Stepforth | J155: Efectivo | Z155: 33
B156: Aruda, Felice | C156: Jockey Plaza | D156: Equipo de sonido 1200 W | E156: 1505 | F156: 2003-08-04 | G156: 2 | H156: 3010 | I156: Barbara | J156: Tcred. Credimas Bco. Cred | Z156: 21
B157: Petry, Robin | C157: Jockey Plaza | D157: Refrigeradoras 12 p3 | E157: 534 | F157: 2003-11-07 | G157: 4 | H157: 2136 | I157: Music | J157: Tcred. Am.Exp Bco. Cred | Z157: 34
B158: Asonte, Toni | C158: Plaza San Miguel | D158: Lavadora Auto 120 PR | E158: 951 | F158: 2003-10-25 | G158: 13 | H158: 12363 | I158: Gallery | J158: Tcred. Credimas Bco. Cred | Z158: 26
B159: Wells, Jason | C159: Jockey Plaza | D159: Lavadora Auto 120 PR | E159: 848 | F159: 2003-11-18 | G159: 18 | H159: 15264 | I159: Gallery | J159: Tcred. Am.Exp Bco. Interbanc | Z159: 26
B160: Berwick, Sam | C160: Mega Plaza | D160: Refrigeradoras 12 p3 | E160: 1282 | F160: 2003-08-05 | G160: 17 | H160: 21794 | I160: Music | J160: Tcred. Am.Exp Bco. Wiese | Z160: 34
B161: Kane, Sheryl | C161: Mega Plaza | D161: Horno Microonda "Rex" | E161: 277 | F161: 2003-09-15 | G161: 4 | H161: 1108 | I161: Sidney | J161: T.Cred. Metro | Z161: 13
B162: Wells, Jason | C162: Mega Plaza | D162: DVD Boddometer | E162: 2179 | F162: 2003-07-09 | G162: 20 | H162: 43580 | I162: Music | J162: T. Cred. Ripley | Z162: 18
B163: Franklin, Larry | C163: Caminos del Inca | D163: DVD Boddometer | E163: 1895 | F163: 2003-11-13 | G163: 12 | H163: 22740 | I163: Mitchell | J163: T. Cred. Plaza Vea | Z163: 41
B164: Kane, Sheryl | C164: Jockey Plaza | D164: DVD Boddometer | E164: 1053 | F164: 2003-07-21 | G164: 19 | H164: 20007 | I164: Cindy | J164: Tcred. Am.Exp Bco. Wiese | Z164: 28
B165: Petry, Robin | C165: Mega Plaza | D165: Horno Microonda "Rex" | E165: 272 | F165: 2003-07-05 | G165: 7 | H165: 1904 | I165: Howard | J165: T. Cred. E Wong | Z165: 31
B166: Mueller, Ursula | C166: Mega Plaza | D166: Lavadora Auto 120 PR | E166: 933 | F166: 2003-10-18 | G166: 1 | H166: 933 | I166: Nebraskan | J166: Efectivo | Z166: 42
B167: Kane, Sheryl | C167: Comercial Arenales | D167: Refrigeradoras 12 p3 | E167: 534 | F167: 2003-10-27 | G167: 9 | H167: 4806 | I167: Ryan | J167: T. Cred. Saga Falabella | Z167: 17
B168: Petry, Robin | C168: Comercial Arenales | D168: DVD Calfex | E168: 1519 | F168: 2003-09-01 | G168: 17 | H168: 25823 | I168: Gallery | J168: Tcred. Ahorros Bco. Conti | Z168: 26
B169: Aruda, Felice | C169: Jockey Plaza | D169: Licuadora Wormex 8 v. | E169: 69.3 | F169: 2003-06-17 | G169: 12 | H169: 831.6 | I169: Joan | J169: T. Cred. Saga Falabella | Z169: 32
B170: Franklin, Larry | C170: Mega Plaza | D170: DVD Calfex | E170: 1989 | F170: 2003-10-23 | G170: 10 | H170: 19890 | I170: Juan | J170: Tcred. Am.Exp Bco. Wiese | Z170: 29
B171: Berwick, Sam | C171: Caminos del Inca | D171: DVD Boddometer | E171: 1377 | F171: 2003-06-21 | G171: 19 | H171: 26163 | I171: Nancy | J171: Tcred. Am.Exp Bco. Conti | Z171: 39
B172: Petry, Robin | C172: Comercial Arenales | D172: Lavadora Auto 120 PR | E172: 826 | F172: 2003-06-21 | G172: 16 | H172: 13216 | I172: Phipps | J172: T. Cred. Saga Falabella | Z172: 25
B173: Asonte, Toni | C173: Comercial Arenales | D173: Horno Microonda "Rex" | E173: 219 | F173: 2003-06-15 | G173: 6 | H173: 1314 | I173: Lakeland | J173: Tcred. Am.Exp Bco. Conti | Z173: 40
B174: Dorfberg, Jeremy | C174: Plaza San Miguel | D174: Cocina Royal 14 | E174: 1008 | F174: 2003-06-10 | G174: 14 | H174: 14112 | I174: Sidney | J174: Efectivo | Z174: 13
B175: Wells, Jason | C175: Plaza San Miguel | D175: Licuadora Wormex 8 v. | E175: 45.8 | F175: 2003-10-19 | G175: 1 | H175: 45.8 | I175: Gallery | J175: T. Cred. Ripley | Z175: 26
B176: Wells, Jason | C176: Jockey Plaza | D176: Licuadora Wormex 8 v. | E176: 49.3 | F176: 2003-10-13 | G176: 13 | H176: 640.9 | I176: Music | J176: Tcred. Dorada Bco. Interbanc | Z176: 10
B177: Wells, Jason | C177: Caminos del Inca | D177: Refrigeradoras 12 p3 | E177: 1239 | F177: 2003-08-28 | G177: 16 | H177: 19824 | I177: Lakeland | J177: Efectivo | Z177: 38
B178: Petry, Robin | C178: Comercial Arenales | D178: Licuadora Wormex 8 v. | E178: 38 | F178: 2003-06-19 | G178: 3 | H178: 114 | I178: Toy | J178: T. Cred. Saga Falabella | Z178: 9
B179: Mueller, Ursula | C179: Comercial Arenales | D179: Horno Microonda "Rex" | E179: 305 | F179: 2003-08-31 | G179: 4 | H179: 1220 | I179: Kevin | J179: Tcred. Ahorros Bco. Wiese | Z179: 24
B180: Aruda, Felice | C180: Jockey Plaza | D180: Licuadora Wormex 8 v. | E180: 32.2 | F180: 2003-10-12 | G180: 6 | H180: 193.2 | I180: Midwest | J180: T. Cred. Plaza Vea | Z180: 12
B181: Mueller, Ursula | C181: Plaza San Miguel | D181: Cocina Royal 14 | E181: 786 | F181: 2003-08-30 | G181: 2 | H181: 1572 | I181: Terry's | J181: Tcred. Am.Exp Bco. Wiese | Z181: 30
B182: Berwick, Sam | C182: Mega Plaza | D182: Licuadora Wormex 8 v. | E182: 35.8 | F182: 2003-07-29 | G182: 9 | H182: 322.2 | I182: Cindy | J182: Tcred. Am.Exp Bco. Wiese | Z182: 28
B183: Kane, Sheryl | C183: Comercial Arenales | D183: Lavadora Auto 120 PR | E183: 1070 | F183: 2003-06-16 | G183: 11 | H183: 11770 | I183: Ryan | J183: Tcred. Personal Bco. Wiese | Z183: 17
B184: Franklin, Larry | C184: Plaza San Miguel | D184: DVD Calfex | E184: 842 | F184: 2003-08-08 | G184: 9 | H184: 7578 | I184: Greenwood | J184: Tcred. Dorada XP Bco. Cred | Z184: 16
B185: Aruda, Felice | C185: Caminos del Inca | D185: DVD Calfex | E185: 1042 | F185: 2003-06-16 | G185: 3 | H185: 3126 | I185: Music | J185: Tcred. Dorada XP Bco. Cred | Z185: 18
B186: Berwick, Sam | C186: Jockey Plaza | D186: Lavadora Auto 120 PR | E186: 1081 | F186: 2003-11-18 | G186: 3 | H186: 3243 | I186: Mitchell | J186: T. Cred. E Wong | Z186: 41
B187: Aruda, Felice | C187: Mega Plaza | D187: Equipo de sonido 1200 W | E187: 2233 | F187: 2003-11-20 | G187: 1 | H187: 2233 | I187: Andy | J187: Tcred. Personal Bco. Wiese | Z187: 23
B188: Petry, Robin | C188: Mega Plaza | D188: Equipo de sonido 1200 W | E188: 615 | F188: 2003-11-09 | G188: 9 | H188: 5535 | I188: Cindy | J188: T. Cred. Saga Falabella | Z188: 28
B189: Kane, Sheryl | C189: Plaza San Miguel | D189: DVD Boddometer | E189: 1259 | F189: 2003-07-31 | G189: 4 | H189: 5036 | I189: Lakeland | J189: T. Cred. E Wong | Z189: 5
B190: Mueller, Ursula | C190: Comercial Arenales | D190: Equipo de sonido 1200 W | E190: 738 | F190: 2003-10-10 | G190: 7 | H190: 5166 | I190: David | J190: Tcred. Am.Exp Bco. Interbanc | Z190: 1
B191: Corwick, Rob | C191: Caminos del Inca | D191: Horno Microonda "Rex" | E191: 177 | F191: 2003-11-12 | G191: 5 | H191: 885 | I191: Linda | J191: Tcred. Am.Exp Bco. Cred | Z191: 8
B192: Aruda, Felice | C192: Jockey Plaza | D192: Lavadora Auto 120 PR | E192: 1145 | F192: 2003-11-18 | G192: 19 | H192: 21755 | I192: Howard | J192: Tcred. Dorada Bco. Interbanc | Z192: 31
B193: Mueller, Ursula | C193: Mega Plaza | D193: Horno Microonda "Rex" | E193: 277 | F193: 2003-07-07 | G193: 1 | H193: 277 | I193: Andy | J193: Efectivo | Z193: 23
B194: Asonte, Toni | C194: Jockey Plaza | D194: Licuadora Wormex 8 v. | E194: 68.5 | F194: 2003-11-11 | G194: 3 | H194: 205.5 | I194: Cronkite | J194: Tcred. Ahorros Bco. Wiese | Z194: 14
B195: Mueller, Ursula | C195: Comercial Arenales | D195: Refrigeradoras 12 p3 | E195: 635 | F195: 2003-09-12 | G195: 15 | H195: 9525 | I195: Lakeland | J195: Tcred. Personal Bco. Wiese | Z195: 38
B196: Berwick, Sam | C196: Caminos del Inca | D196: Licuadora Wormex 8 v. | E196: 60 | F196: 2003-10-03 | G196: 19 | H196: 1140 | I196: Juan | J196: Tcred. Ahorros Bco. Conti | Z196: 29
B197: Corwick, Rob | C197: Comercial Arenales | D197: Equipo de sonido 1200 W | E197: 489 | F197: 2003-10-07 | G197: 3 | H197: 1467 | I197: Stepforth | J197: Efectivo | Z197: 33
B198: Mueller, Ursula | C198: Mega Plaza | D198: Refrigeradoras 12 p3 | E198: 1553 | F198: 2003-10-06 | G198: 2 | H198: 3106 | I198: Cronkite | J198: Tcred. Credimas Bco. Cred | Z198: 14
B199: Berwick, Sam | C199: Mega Plaza | D199: Lavadora Auto 120 PR | E199: 865 | F199: 2003-09-18 | G199: 16 | H199: 13840 | I199: Andy | J199: Tcred. Ahorros Bco. Conti | Z199: 23
B200: Corwick, Rob | C200: Plaza San Miguel | D200: DVD Boddometer | E200: 1809 | F200: 2003-11-14 | G200: 12 | H200: 21708 | I200: Kyle | J200: Efectivo | Z200: 43
... 161 more rows

Sheet Macro 06
A1: VENTAS DIARIAS
A2: Tienda | B2: Dia | C2: Manzana | D2: Pera | E2: Melocotón | F2: Naranja | G2: Papaya | H2: Almacén | I2: Vendedor | J2: FormaPago | K2: Total
A3: Plaza Norte | B3: Miércoles | C3: 258 | D3: 68 | E3: 171 | F3: 916 | G3: 509 | H3: Los Olivos | I3: Báslavi | J3: TC. Bco. Wiese | K3: =SUM(C3:G3) -> 1922
A4: Assian Food | B4: Miércoles | C4: 302 | D4: 66 | E4: 162 | F4: 907 | G4: 471 | H4: Callao | I4: Otto | J4: TC. Bco. Wiese | K4: 1908
A5: Lago Plaza | B5: Sábado | C5: 338 | D5: 67 | E5: 139 | F5: 881 | G5: 461 | H5: Atocongo | I5: Gissela | J5: Efectivo | K5: 1886
A6: Dino's Market | B6: Martes | C6: 262 | D6: 70 | E6: 128 | F6: 834 | G6: 550 | H6: Ate | I6: Marco | J6: TC. Metro | K6: 1844
A7: Lago Plaza | B7: Miércoles | C7: 255 | D7: } | E7: 126 | F7: 952 | G7: 543 | H7: Callao | I7: Báslavi | J7: TC. Metro | K7: 1876
A8: Dino's Market | B8: Martes | C8: 281 | D8: 64 | E8: 176 | F8: 834 | G8: 551 | H8: Los Olivos | I8: Gissela | J8: TC. Bco. Wiese | K8: 1906
A9: Plaza Norte | B9: Viernes | C9: 277 | D9: 72 | E9: 142 | F9: 909 | G9: 511 | H9: Los Olivos | I9: Gissela | J9: TC. Bco. Wiese | K9: 1911
A10: Lago Plaza | B10: Jueves | C10: 321 | D10: 66 | E10: 152 | F10: 967 | G10: 507 | H10: Los Olivos | I10: Yaco | J10: TC. Bco. Wiese | K10: 2013
A11: Plaza Norte | B11: Sábado | C11: 266 | D11: 55 | E11: 138 | F11: 910 | G11: 495 | H11: Los Olivos | I11: Gissela | J11: Efectivo | K11: 1864
A12: Plaza Norte | B12: Viernes | C12: 314 | D12: 53 | E12: 179 | F12: 947 | G12: 521 | H12: Atocongo | I12: Báslavi | J12: Efectivo | K12: 2014
A13: Centro Plaza | B13: Miércoles | C13: 323 | D13: 76 | E13: 149 | F13: 972 | G13: 534 | H13: Atocongo | I13: Yaco | J13: Efectivo | K13: 2054
A14: Dino's Market | B14: Lunes | C14: 277 | D14: 70 | E14: 163 | F14: 821 | G14: 468 | H14: Atocongo | I14: Yaco | J14: TC Bco. Crédito | K14: 1799
A15: Assian Food | B15: Martes | C15: 280 | D15: 66 | E15: 147 | F15: 836 | G15: 558 | H15: Los Olivos | I15: Báslavi | J15: TC. Bco. Wiese | K15: 1887
A16: Lago Plaza | B16: Miércoles | C16: 271 | D16: 76 | E16: 167 | F16: 950 | G16: 557 | H16: Los Olivos | I16: Isabel | J16: TC Bco. Crédito | K16: 2021
A17: Lago Plaza | B17: Sábado | C17: 334 | D17: 74 | E17: 132 | F17: 824 | G17: 535 | H17: Atocongo | I17: Otto | J17: Efectivo | K17: 1899
A18: Assian Food | B18: Lunes | C18: 330 | D18: 58 | E18: 124 | F18: 896 | G18: 535 | H18: Callao | I18: Otto | J18: Efectivo | K18: 1943
A19: Centro Plaza | B19: Sábado | C19: 258 | D19: 75 | E19: 152 | F19: 940 | G19: 493 | H19: Ate | I19: Marco | J19: TC Bco. Crédito | K19: 1918
A20: Centro Plaza | B20: Jueves | C20: 329 | D20: 62 | E20: 140 | F20: 817 | G20: 474 | H20: Ate | I20: Isabel | J20: TC Bco. Crédito | K20: 1822
A21: Lago Plaza | B21: Sábado | C21: 349 | D21: 63 | E21: 169 | F21: 827 | G21: 547 | H21: Ate | I21: Báslavi | J21: TC. Bco. Wiese | K21: 1955
A22: Dino's Market | B22: Miércoles | C22: 277 | D22: 50 | E22: 123 | F22: 936 | G22: 491 | H22: Callao | I22: Isabel | J22: TC. Metro | K22: 1877
A23: Dino's Market | B23: Lunes | C23: 313 | D23: 70 | E23: 149 | F23: 912 | G23: 454 | H23: Atocongo | I23: Gissela | J23: TC. Bco. Wiese | K23: 1898
A24: Centro Plaza | B24: Miércoles | C24: 274 | D24: 66 | E24: 129 | F24: 866 | G24: 547 | H24: Los Olivos | I24: Otto | J24: TC. Metro | K24: 1882
A25: Assian Food | B25: Jueves | C25: 257 | D25: 62 | E25: 127 | F25: 877 | G25: 460 | H25: Atocongo | I25: Yaco | J25: Efectivo | K25: 1783
A26: Lago Plaza | B26: Jueves | C26: 271 | D26: 71 | E26: 174 | F26: 891 | G26: 509 | H26: Ate | I26: Otto | J26: TC. Bco. Wiese | K26: 1916
A27: Plaza Norte | B27: Viernes | C27: 349 | D27: 72 | E27: 142 | F27: 972 | G27: 505 | H27: Callao | I27: Yaco | J27: TC. Metro | K27: 2040
A28: Plaza Norte | B28: Sábado | C28: 313 | D28: 61 | E28: 176 | F28: 917 | G28: 484 | H28: Los Olivos | I28: Otto | J28: Efectivo | K28: 1951
A29: Plaza Norte | B29: Miércoles | C29: 293 | D29: 70 | E29: 156 | F29: 815 | G29: 506 | H29: Ate | I29: Báslavi | J29: TC. Metro | K29: 1840
A30: Plaza Norte | B30: Viernes | C30: 336 | D30: 52 | E30: 153 | F30: 967 | G30: 546 | H30: Los Olivos | I30: Báslavi | J30: Efectivo | K30: 2054
A31: Dino's Market | B31: Sábado | C31: 253 | D31: 51 | E31: 162 | F31: 930 | G31: 499 | H31: Ate | I31: Otto | J31: TC. Bco. Wiese | K31: 1895
A32: Plaza Norte | B32: Jueves | C32: 252 | D32: 76 | E32: 126 | F32: 965 | G32: 466 | H32: Atocongo | I32: Yaco | J32: TC Bco. Crédito | K32: 1885
A33: Dino's Market | B33: Miércoles | C33: 282 | D33: 67 | E33: 146 | F33: 889 | G33: 457 | H33: Atocongo | I33: Marco | J33: Efectivo | K33: 1841
A34: Dino's Market | B34: Miércoles | C34: 272 | D34: 76 | E34: 121 | F34: 866 | G34: 508 | H34: Atocongo | I34: Marco | J34: TC Bco. Crédito | K34: 1843
A35: Centro Plaza | B35: Jueves | C35: 309 | D35: 51 | E35: 146 | F35: 820 | G35: 468 | H35: Atocongo | I35: Gissela | J35: TC. Bco. Wiese | K35: 1794
A36: Centro Plaza | B36: Jueves | C36: 331 | D36: 56 | E36: 143 | F36: 955 | G36: 495 | H36: Callao | I36: Yaco | J36: TC. Metro | K36: 1980
A37: Lago Plaza | B37: Martes | C37: 280 | D37: 53 | E37: 179 | F37: 970 | G37: 461 | H37: Atocongo | I37: Otto | J37: TC. Metro | K37: 1943
A38: Dino's Market | B38: Viernes | C38: 294 | D38: 79 | E38: 175 | F38: 899 | G38: 533 | H38: Los Olivos | I38: Isabel | J38: TC Bco. Crédito | K38: 1980
A39: Dino's Market | B39: Lunes | C39: 287 | D39: 59 | E39: 147 | F39: 958 | G39: 508 | H39: Ate | I39: Isabel | J39: Efectivo | K39: 1959
A40: Assian Food | B40: Lunes | C40: 345 | D40: 66 | E40: 169 | F40: 816 | G40: 491 | H40: Callao | I40: Gissela | J40: Efectivo | K40: 1887
A41: Dino's Market | B41: Martes | C41: 291 | D41: 51 | E41: 151 | F41: 818 | G41: 500 | H41: Atocongo | I41: Báslavi | J41: TC Bco. Crédito | K41: 1811
A42: Plaza Norte | B42: Martes | C42: 261 | D42: 52 | E42: 137 | F42: 921 | G42: 483 | H42: Ate | I42: Báslavi | J42: TC Bco. Crédito | K42: 1854
A43: Centro Plaza | B43: Sábado | C43: 333 | D43: 57 | E43: 168 | F43: 911 | G43: 471 | H43: Callao | I43: Báslavi | J43: TC. Metro | K43: 1940
A44: Dino's Market | B44: Jueves | C44: 333 | D44: 67 | E44: 134 | F44: 975 | G44: 488 | H44: Callao | I44: Isabel | J44: TC Bco. Crédito | K44: 1997
A45: Lago Plaza | B45: Martes | C45: 269 | D45: 51 | E45: 149 | F45: 859 | G45: 506 | H45: Atocongo | I45: Báslavi | J45: Efectivo | K45: 1834
A46: Centro Plaza | B46: Sábado | C46: 273 | D46: 64 | E46: 150 | F46: 818 | G46: 560 | H46: Callao | I46: Isabel | J46: Efectivo | K46: 1865
A47: Dino's Market | B47: Jueves | C47: 309 | D47: 65 | E47: 147 | F47: 907 | G47: 481 | H47: Callao | I47: Isabel | J47: TC Bco. Crédito | K47: 1909
A48: Lago Plaza | B48: Lunes | C48: 290 | D48: 59 | E48: 123 | F48: 878 | G48: 508 | H48: Callao | I48: Marco | J48: TC Bco. Crédito | K48: 1858
A49: Centro Plaza | B49: Lunes | C49: 277 | D49: 77 | E49: 121 | F49: 852 | G49: 471 | H49: Ate | I49: Báslavi | J49: TC. Metro | K49: 1798
A50: Dino's Market | B50: Martes | C50: 314 | D50: 74 | E50: 136 | F50: 820 | G50: 461 | H50: Atocongo | I50: Báslavi | J50: TC. Bco. Wiese | K50: 1805
A51: Dino's Market | B51: Sábado | C51: 344 | D51: 58 | E51: 176 | F51: 947 | G51: 523 | H51: Ate | I51: Báslavi | J51: TC. Metro | K51: 2048
A52: Lago Plaza | B52: Sábado | C52: 343 | D52: 52 | E52: 163 | F52: 921 | G52: 494 | H52: Ate | I52: Otto | J52: Efectivo | K52: 1973
A53: Dino's Market | B53: Viernes | C53: 334 | D53: 63 | E53: 159 | F53: 853 | G53: 530 | H53: Atocongo | I53: Otto | J53: TC. Bco. Wiese | K53: 1939
A54: Plaza Norte | B54: Miércoles | C54: 327 | D54: 75 | E54: 140 | F54: 856 | G54: 500 | H54: Ate | I54: Isabel | J54: TC Bco. Crédito | K54: 1898
A55: Lago Plaza | B55: Sábado | C55: 314 | D55: 57 | E55: 122 | F55: 865 | G55: 515 | H55: Los Olivos | I55: Otto | J55: TC. Metro | K55: 1873
A56: Centro Plaza | B56: Viernes | C56: 291 | D56: 52 | E56: 163 | F56: 885 | G56: 545 | H56: Atocongo | I56: Gissela | J56: TC. Bco. Wiese | K56: 1936
A57: Plaza Norte | B57: Sábado | C57: 309 | D57: 62 | E57: 125 | F57: 962 | G57: 558 | H57: Ate | I57: Isabel | J57: TC Bco. Crédito | K57: 2016
A58: Centro Plaza | B58: Jueves | C58: 306 | D58: 55 | E58: 140 | F58: 834 | G58: 549 | H58: Atocongo | I58: Isabel | J58: TC Bco. Crédito | K58: 1884
A59: Centro Plaza | B59: Lunes | C59: 267 | D59: 70 | E59: 138 | F59: 823 | G59: 461 | H59: Los Olivos | I59: Isabel | J59: TC Bco. Crédito | K59: 1759
A60: Dino's Market | B60: Viernes | C60: 346 | D60: 57 | E60: 161 | F60: 931 | G60: 500 | H60: Ate | I60: Báslavi | J60: TC. Bco. Wiese | K60: 1995
A61: Plaza Norte | B61: Jueves | C61: 281 | D61: 69 | E61: 135 | F61: 823 | G61: 503 | H61: Los Olivos | I61: Yaco | J61: TC Bco. Crédito | K61: 1811
A62: Dino's Market | B62: Sábado | C62: 285 | D62: 53 | E62: 135 | F62: 890 | G62: 558 | H62: Ate | I62: Gissela | J62: TC. Bco. Wiese | K62: 1921
A63: Assian Food | B63: Miércoles | C63: 338 | D63: 58 | E63: 121 | F63: 907 | G63: 535 | H63: Atocongo | I63: Gissela | J63: TC. Metro | K63: 1959
A64: Lago Plaza | B64: Martes | C64: 278 | D64: 58 | E64: 123 | F64: 851 | G64: 500 | H64: Los Olivos | I64: Báslavi | J64: TC. Bco. Wiese | K64: 1810
A65: Lago Plaza | B65: Viernes | C65: 337 | D65: 59 | E65: 124 | F65: 837 | G65: 513 | H65: Ate | I65: Báslavi | J65: TC Bco. Crédito | K65: 1870
A66: Assian Food | B66: Lunes | C66: 257 | D66: 52 | E66: 174 | F66: 846 | G66: 554 | H66: Callao | I66: Isabel | J66: TC. Bco. Wiese | K66: 1883
A67: Plaza Norte | B67: Lunes | C67: 342 | D67: 50 | E67: 153 | F67: 837 | G67: 484 | H67: Atocongo | I67: Gissela | J67: Efectivo | K67: =SUM(C67:G67) -> 1866
A68: Lago Plaza | B68: Martes | C68: 261 | D68: 54 | E68: 159 | F68: 826 | G68: 478 | H68: Los Olivos | I68: Báslavi | J68: TC Bco. Crédito | K68: 1778
A69: Dino's Market | B69: Martes | C69: 279 | D69: 78 | E69: 143 | F69: 904 | G69: 458 | H69: Los Olivos | I69: Marco | J69: TC. Metro | K69: 1862
A70: Lago Plaza | B70: Viernes | C70: 303 | D70: 63 | E70: 122 | F70: 941 | G70: 544 | H70: Callao | I70: Báslavi | J70: TC. Bco. Wiese | K70: 1973
A71: Centro Plaza | B71: Sábado | C71: 305 | D71: 67 | E71: 161 | F71: 958 | G71: 526 | H71: Los Olivos | I71: Marco | J71: Efectivo | K71: 2017
A72: Assian Food | B72: Miércoles | C72: 271 | D72: 57 | E72: 131 | F72: 955 | G72: 499 | H72: Callao | I72: Marco | J72: TC Bco. Crédito | K72: 1913
A73: Lago Plaza | B73: Viernes | C73: 324 | D73: 64 | E73: 126 | F73: 864 | G73: 532 | H73: Callao | I73: Marco | J73: TC Bco. Crédito | K73: 1910
A74: Plaza Norte | B74: Jueves | C74: 309 | D74: 51 | E74: 146 | F74: 820 | G74: 468 | H74: Atocongo | I74: Gissela | J74: TC Bco. Crédito | K74: 1794
A75: Dino's Market | B75: Jueves | C75: 320 | D75: 63 | E75: 148 | F75: 870 | G75: 530 | H75: Los Olivos | I75: Báslavi | J75: TC. Metro | K75: 1931
A76: Plaza Norte | B76: Martes | C76: 254 | D76: 80 | E76: 129 | F76: 905 | G76: 502 | H76: Callao | I76: Gissela | J76: TC. Bco. Wiese | K76: 1870
A77: Dino's Market | B77: Viernes | C77: 317 | D77: 65 | E77: 156 | F77: 946 | G77: 542 | H77: Callao | I77: Marco | J77: TC. Bco. Wiese | K77: 2026
A78: Lago Plaza | B78: Sábado | C78: 278 | D78: 66 | E78: 121 | F78: 827 | G78: 489 | H78: Los Olivos | I78: Gissela | J78: TC. Bco. Wiese | K78: 1781
A79: Plaza Norte | B79: Viernes | C79: 250 | D79: 58 | E79: 135 | F79: 925 | G79: 558 | H79: Ate | I79: Yaco | J79: TC Bco. Crédito | K79: 1926
A80: Lago Plaza | B80: Martes | C80: 340 | D80: 75 | E80: 131 | F80: 928 | G80: 464 | H80: Callao | I80: Báslavi | J80: TC. Bco. Wiese | K80: 1938
A81: Dino's Market | B81: Martes | C81: 297 | D81: 75 | E81: 178 | F81: 810 | G81: 527 | H81: Callao | I81: Otto | J81: Efectivo | K81: 1887
A82: Dino's Market | B82: Jueves | C82: 316 | D82: 80 | E82: 126 | F82: 866 | G82: 524 | H82: Callao | I82: Isabel | J82: TC. Metro | K82: 1912
A83: Dino's Market | B83: Sábado | C83: 256 | D83: 58 | E83: 144 | F83: 825 | G83: 498 | H83: Los Olivos | I83: Marco | J83: TC Bco. Crédito | K83: 1781
A84: Lago Plaza | B84: Jueves | C84: 342 | D84: 72 | E84: 166 | F84: 893 | G84: 478 | H84: Callao | I84: Otto | J84: TC. Metro | K84: 1951
A85: Assian Food | B85: Miércoles | C85: 335 | D85: 79 | E85: 135 | F85: 944 | G85: 458 | H85: Los Olivos | I85: Yaco | J85: TC. Bco. Wiese | K85: 1951
A86: Plaza Norte | B86: Martes | C86: 268 | D86: 55 | E86: 125 | F86: 803 | G86: 513 | H86: Ate | I86: Yaco | J86: TC. Metro | K86: 1764
A87: Assian Food | B87: Viernes | C87: 334 | D87: 58 | E87: 142 | F87: 908 | G87: 496 | H87: Callao | I87: Báslavi | J87: Efectivo | K87: 1938
A88: Assian Food | B88: Miércoles | C88: 316 | D88: 75 | E88: 155 | F88: 957 | G88: 554 | H88: Los Olivos | I88: Otto | J88: TC. Metro | K88: 2057
A89: Dino's Market | B89: Lunes | C89: 273 | D89: 71 | E89: 154 | F89: 849 | G89: 494 | H89: Callao | I89: Báslavi | J89: TC. Metro | K89: 1841
A90: Lago Plaza | B90: Sábado | C90: 285 | D90: 80 | E90: 149 | F90: 810 | G90: 554 | H90: Los Olivos | I90: Báslavi | J90: Efectivo | K90: 1878
A91: Assian Food | B91: Martes | C91: 291 | D91: 80 | E91: 163 | F91: 924 | G91: 529 | H91: Atocongo | I91: Gissela | J91: TC Bco. Crédito | K91: 1987
A92: Dino's Market | B92: Sábado | C92: 334 | D92: 52 | E92: 147 | F92: 835 | G92: 492 | H92: Callao | I92: Marco | J92: TC. Bco. Wiese | K92: 1860
A93: Centro Plaza | B93: Miércoles | C93: 261 | D93: 58 | E93: 139 | F93: 856 | G93: 516 | H93: Atocongo | I93: Yaco | J93: TC. Bco. Wiese | K93: 1830
A94: Assian Food | B94: Viernes | C94: 266 | D94: 59 | E94: 134 | F94: 886 | G94: 512 | H94: Atocongo | I94: Isabel | J94: TC. Bco. Wiese | K94: 1857
A95: Plaza Norte | B95: Miércoles | C95: 269 | D95: 68 | E95: 127 | F95: 937 | G95: 513 | H95: Atocongo | I95: Isabel | J95: TC. Metro | K95: 1914
A96: Dino's Market | B96: Sábado | C96: 318 | D96: 67 | E96: 167 | F96: 825 | G96: 529 | H96: Los Olivos | I96: Marco | J96: TC. Bco. Wiese | K96: 1906
A97: Centro Plaza | B97: Miércoles | C97: 320 | D97: 75 | E97: 157 | F97: 959 | G97: 460 | H97: Callao | I97: Marco | J97: TC. Bco. Wiese | K97: 1971
A98: Lago Plaza | B98: Viernes | C98: 329 | D98: 56 | E98: 171 | F98: 854 | G98: 453 | H98: Callao | I98: Báslavi | J98: Efectivo | K98: 1863
A99: Assian Food | B99: Lunes | C99: 312 | D99: 75 | E99: 153 | F99: 828 | G99: 511 | H99: Callao | I99: Yaco | J99: TC. Bco. Wiese | K99: 1879
A100: Centro Plaza | B100: Viernes | C100: 350 | D100: 65 | E100: 144 | F100: 917 | G100: 490 | H100: Callao | I100: Yaco | J100: TC. Bco. Wiese | K100: 1966
A101: Assian Food | B101: Jueves | C101: 291 | D101: 59 | E101: 130 | F101: 910 | G101: 557 | H101: Ate | I101: Isabel | J101: TC. Metro | K101: 1947
A102: Assian Food | B102: Jueves | C102: 267 | D102: 78 | E102: 156 | F102: 853 | G102: 538 | H102: Callao | I102: Isabel | J102: Efectivo | K102: 1892
A103: Assian Food | B103: Jueves | C103: 325 | D103: 59 | E103: 135 | F103: 968 | G103: 529 | H103: Atocongo | I103: Otto | J103: TC. Bco. Wiese | K103: 2016
A104: Lago Plaza | B104: Jueves | C104: 344 | D104: 65 | E104: 145 | F104: 821 | G104: 479 | H104: Callao | I104: Gissela | J104: Efectivo | K104: 1854
A105: Plaza Norte | B105: Sábado | C105: 303 | D105: 59 | E105: 177 | F105: 974 | G105: 509 | H105: Atocongo | I105: Báslavi | J105: TC Bco. Crédito | K105: 2022
A106: Assian Food | B106: Viernes | C106: 319 | D106: 69 | E106: 169 | F106: 836 | G106: 558 | H106: Los Olivos | I106: Gissela | J106: TC. Metro | K106: 1951
A107: Lago Plaza | B107: Sábado | C107: 258 | D107: 75 | E107: 152 | F107: 940 | G107: 493 | H107: Ate | I107: Marco | J107: TC Bco. Crédito | K107: 1918
A108: Assian Food | B108: Jueves | C108: 308 | D108: 56 | E108: 136 | F108: 934 | G108: 510 | H108: Los Olivos | I108: Báslavi | J108: TC. Metro | K108: 1944
A109: Dino's Market | B109: Sábado | C109: 346 | D109: 79 | E109: 162 | F109: 894 | G109: 557 | H109: Ate | I109: Báslavi | J109: TC Bco. Crédito | K109: 2038
A110: Dino's Market | B110: Viernes | C110: 348 | D110: 70 | E110: 171 | F110: 963 | G110: 534 | H110: Callao | I110: Isabel | J110: TC Bco. Crédito | K110: 2086
A111: Lago Plaza | B111: Lunes | C111: 304 | D111: 59 | E111: 126 | F111: 867 | G111: 467 | H111: Los Olivos | I111: Gissela | J111: TC. Metro | K111: 1823
A112: Centro Plaza | B112: Martes | C112: 259 | D112: 54 | E112: 152 | F112: 961 | G112: 522 | H112: Ate | I112: Marco | J112: Efectivo | K112: 1948
A113: Lago Plaza | B113: Martes | C113: 334 | D113: 74 | E113: 166 | F113: 863 | G113: 502 | H113: Atocongo | I113: Otto | J113: TC. Bco. Wiese | K113: 1939
A114: Plaza Norte | B114: Martes | C114: 321 | D114: 72 | E114: 128 | F114: 955 | G114: 497 | H114: Callao | I114: Gissela | J114: TC. Metro | K114: 1973
A115: Assian Food | B115: Martes | C115: 274 | D115: 56 | E115: 162 | F115: 959 | G115: 519 | H115: Ate | I115: Marco | J115: TC Bco. Crédito | K115: 1970
A116: Assian Food | B116: Lunes | C116: 349 | D116: 54 | E116: 171 | F116: 966 | G116: 476 | H116: Los Olivos | I116: Marco | J116: TC Bco. Crédito | K116: 2016
A117: Lago Plaza | B117: Martes | C117: 288 | D117: 51 | E117: 146 | F117: 814 | G117: 558 | H117: Atocongo | I117: Isabel | J117: TC Bco. Crédito | K117: 1857
A118: Centro Plaza | B118: Sábado | C118: 295 | D118: 74 | E118: 145 | F118: 896 | G118: 532 | H118: Los Olivos | I118: Báslavi | J118: TC. Bco. Wiese | K118: 1942
A119: Dino's Market | B119: Viernes | C119: 315 | D119: 56 | E119: 164 | F119: 880 | G119: 500 | H119: Callao | I119: Marco | J119: TC. Metro | K119: 1915
A120: Assian Food | B120: Viernes | C120: 347 | D120: 68 | E120: 170 | F120: 828 | G120: 514 | H120: Atocongo | I120: Báslavi | J120: TC Bco. Crédito | K120: 1927
A121: Centro Plaza | B121: Miércoles | C121: 268 | D121: 54 | E121: 179 | F121: 831 | G121: 534 | H121: Ate | I121: Isabel | J121: Efectivo | K121: 1866
A122: Lago Plaza | B122: Martes | C122: 290 | D122: 55 | E122: 124 | F122: 916 | G122: 476 | H122: Callao | I122: Otto | J122: Efectivo | K122: 1861
A123: Lago Plaza | B123: Sábado | C123: 312 | D123: 70 | E123: 153 | F123: 830 | G123: 499 | H123: Callao | I123: Yaco | J123: TC. Bco. Wiese | K123: 1864
A124: Lago Plaza | B124: Viernes | C124: 293 | D124: 58 | E124: 141 | F124: 865 | G124: 490 | H124: Atocongo | I124: Gissela | J124: TC. Bco. Wiese | K124: 1847
A125: Centro Plaza | B125: Viernes | C125: 250 | D125: 70 | E125: 154 | F125: 889 | G125: 520 | H125: Ate | I125: Yaco | J125: TC Bco. Crédito | K125: 1883
A126: Assian Food | B126: Lunes | C126: 262 | D126: 78 | E126: 132 | F126: 979 | G126: 506 | H126: Los Olivos | I126: Yaco | J126: Efectivo | K126: 1957
A127: Assian Food | B127: Sábado | C127: 313 | D127: 61 | E127: 176 | F127: 917 | G127: 484 | H127: Los Olivos | I127: Otto | J127: TC. Metro | K127: 1951
A128: Centro Plaza | B128: Jueves | C128: 350 | D128: 52 | E128: 121 | F128: 974 | G128: 531 | H128: Ate | I128: Isabel | J128: Efectivo | K128: 2028
A129: Assian Food | B129: Viernes | C129: 286 | D129: 75 | E129: 122 | F129: 898 | G129: 481 | H129: Callao | I129: Isabel | J129: TC. Metro | K129: 1862
A130: Dino's Market | B130: Martes | C130: 324 | D130: 62 | E130: 150 | F130: 843 | G130: 496 | H130: Atocongo | I130: Gissela | J130: TC Bco. Crédito | K130: 1875
A131: Lago Plaza | B131: Martes | C131: 294 | D131: 51 | E131: 165 | F131: 850 | G131: 554 | H131: Ate | I131: Otto | J131: Efectivo | K131: =SUM(C131:G131) -> 1914
A132: Plaza Norte | B132: Martes | C132: 312 | D132: 78 | E132: 132 | F132: 933 | G132: 454 | H132: Los Olivos | I132: Báslavi | J132: TC. Metro | K132: 1909
A133: Assian Food | B133: Viernes | C133: 345 | D133: 60 | E133: 138 | F133: 846 | G133: 550 | H133: Atocongo | I133: Isabel | J133: TC. Bco. Wiese | K133: 1939
A134: Assian Food | B134: Jueves | C134: 266 | D134: 56 | E134: 137 | F134: 934 | G134: 468 | H134: Los Olivos | I134: Gissela | J134: TC. Bco. Wiese | K134: 1861
A135: Lago Plaza | B135: Viernes | C135: 266 | D135: 59 | E135: 173 | F135: 828 | G135: 468 | H135: Callao | I135: Yaco | J135: TC. Metro | K135: 1794
A136: Assian Food | B136: Martes | C136: 274 | D136: 70 | E136: 164 | F136: 900 | G136: 494 | H136: Ate | I136: Otto | J136: TC Bco. Crédito | K136: 1902
A137: Plaza Norte | B137: Lunes | C137: 300 | D137: 75 | E137: 140 | F137: 808 | G137: 467 | H137: Atocongo | I137: Isabel | J137: TC. Metro | K137: 1790
A138: Centro Plaza | B138: Martes | C138: 349 | D138: 72 | E138: 129 | F138: 901 | G138: 558 | H138: Callao | I138: Isabel | J138: Efectivo | K138: 2009
A139: Lago Plaza | B139: Sábado | C139: 326 | D139: 58 | E139: 163 | F139: 940 | G139: 549 | H139: Los Olivos | I139: Gissela | J139: TC. Bco. Wiese | K139: 2036
A140: Centro Plaza | B140: Lunes | C140: 338 | D140: 68 | E140: 128 | F140: 824 | G140: 460 | H140: Los Olivos | I140: Marco | J140: Efectivo | K140: 1818
A141: Lago Plaza | B141: Lunes | C141: 284 | D141: 75 | E141: 136 | F141: 812 | G141: 485 | H141: Callao | I141: Yaco | J141: TC. Bco. Wiese | K141: 1792
A142: Assian Food | B142: Jueves | C142: 313 | D142: 70 | E142: 140 | F142: 980 | G142: 502 | H142: Ate | I142: Marco | J142: TC Bco. Crédito | K142: 2005
A143: Lago Plaza | B143: Sábado | C143: 253 | D143: 57 | E143: 170 | F143: 977 | G143: 556 | H143: Los Olivos | I143: Yaco | J143: TC. Bco. Wiese | K143: 2013
A144: Dino's Market | B144: Miércoles | C144: 338 | D144: 58 | E144: 121 | F144: 907 | G144: 535 | H144: Atocongo | I144: Gissela | J144: TC. Metro | K144: 1959
A145: Assian Food | B145: Lunes | C145: 323 | D145: 65 | E145: 170 | F145: 885 | G145: 475 | H145: Ate | I145: Báslavi | J145: Efectivo | K145: 1918
A146: Plaza Norte | B146: Sábado | C146: 331 | D146: 57 | E146: 162 | F146: 921 | G146: 488 | H146: Los Olivos | I146: Báslavi | J146: TC Bco. Crédito | K146: 1959
A147: Lago Plaza | B147: Viernes | C147: 297 | D147: 77 | E147: 123 | F147: 822 | G147: 475 | H147: Ate | I147: Otto | J147: TC Bco. Crédito | K147: 1794
A148: Dino's Market | B148: Jueves | C148: 279 | D148: 79 | E148: 170 | F148: 879 | G148: 497 | H148: Atocongo | I148: Marco | J148: Efectivo | K148: 1904
A149: Centro Plaza | B149: Viernes | C149: 309 | D149: 78 | E149: 157 | F149: 938 | G149: 532 | H149: Atocongo | I149: Otto | J149: TC Bco. Crédito | K149: 2014
A150: Assian Food | B150: Viernes | C150: 313 | D150: 73 | E150: 149 | F150: 973 | G150: 535 | H150: Ate | I150: Gissela | J150: TC. Bco. Wiese | K150: 2043
A151: Plaza Norte | B151: Jueves | C151: 274 | D151: 71 | E151: 141 | F151: 930 | G151: 487 | H151: Ate | I151: Otto | J151: Efectivo | K151: 1903
A152: Dino's Market | B152: Jueves | C152: 303 | D152: 80 | E152: 151 | F152: 913 | G152: 481 | H152: Atocongo | I152: Otto | J152: TC. Bco. Wiese | K152: 1928
A153: Plaza Norte | B153: Viernes | C153: 328 | D153: 73 | E153: 129 | F153: 912 | G153: 502 | H153: Atocongo | I153: Otto | J153: TC Bco. Crédito | K153: 1944
A154: Centro Plaza | B154: Sábado | C154: 301 | D154: 51 | E154: 180 | F154: 856 | G154: 535 | H154: Los Olivos | I154: Isabel | J154: Efectivo | K154: 1923
A155: Dino's Market | B155: Miércoles | C155: 325 | D155: 60 | E155: 175 | F155: 886 | G155: 512 | H155: Atocongo | I155: Báslavi | J155: Efectivo | K155: 1958
A156: Dino's Market | B156: Sábado | C156: 342 | D156: 56 | E156: 151 | F156: 910 | G156: 515 | H156: Los Olivos | I156: Yaco | J156: TC Bco. Crédito | K156: 1974
A157: Dino's Market | B157: Sábado | C157: 288 | D157: 71 | E157: 178 | F157: 884 | G157: 455 | H157: Los Olivos | I157: Marco | J157: TC. Metro | K157: 1876
A158: Lago Plaza | B158: Martes | C158: 269 | D158: 51 | E158: 149 | F158: 859 | G158: 506 | H158: Atocongo | I158: Báslavi | J158: TC. Bco. Wiese | K158: 1834
A159: Centro Plaza | B159: Lunes | C159: 257 | D159: 50 | E159: 165 | F159: 921 | G159: 508 | H159: Atocongo | I159: Marco | J159: TC. Metro | K159: 1901
A160: Assian Food | B160: Viernes | C160: 315 | D160: 62 | E160: 149 | F160: 923 | G160: 545 | H160: Atocongo | I160: Gissela | J160: Efectivo | K160: 1994
A161: Dino's Market | B161: Lunes | C161: 261 | D161: 59 | E161: 173 | F161: 842 | G161: 481 | H161: Callao | I161: Otto | J161: TC Bco. Crédito | K161: 1816
A162: Lago Plaza | B162: Viernes | C162: 333 | D162: 69 | E162: 127 | F162: 833 | G162: 554 | H162: Callao | I162: Otto | J162: TC Bco. Crédito | K162: 1916
A163: Dino's Market | B163: Viernes | C163: 302 | D163: 72 | E163: 160 | F163: 927 | G163: 484 | H163: Ate | I163: Gissela | J163: TC. Bco. Wiese | K163: 1945
A164: Dino's Market | B164: Martes | C164: 264 | D164: 65 | E164: 161 | F164: 946 | G164: 527 | H164: Ate | I164: Báslavi | J164: TC Bco. Crédito | K164: 1963
A165: Lago Plaza | B165: Jueves | C165: 278 | D165: 72 | E165: 128 | F165: 914 | G165: 473 | H165: Atocongo | I165: Yaco | J165: TC. Bco. Wiese | K165: 1865
A166: Centro Plaza | B166: Jueves | C166: 288 | D166: 68 | E166: 156 | F166: 907 | G166: 537 | H166: Ate | I166: Marco | J166: TC. Bco. Wiese | K166: 1956
A167: Centro Plaza | B167: Jueves | C167: 333 | D167: 52 | E167: 138 | F167: 802 | G167: 488 | H167: Atocongo | I167: Isabel | J167: TC. Metro | K167: 1813
A168: Assian Food | B168: Sábado | C168: 301 | D168: 50 | E168: 132 | F168: 896 | G168: 555 | H168: Ate | I168: Isabel | J168: TC. Bco. Wiese | K168: 1934
A169: Plaza Norte | B169: Lunes | C169: 300 | D169: 75 | E169: 140 | F169: 808 | G169: 467 | H169: Atocongo | I169: Isabel | J169: Efectivo | K169: 1790
A170: Assian Food | B170: Jueves | C170: 346 | D170: 62 | E170: 147 | F170: 902 | G170: 491 | H170: Ate | I170: Yaco | J170: TC. Bco. Wiese | K170: 1948
A171: Plaza Norte | B171: Miércoles | C171: 333 | D171: 55 | E171: 180 | F171: 926 | G171: 524 | H171: Atocongo | I171: Isabel | J171: TC Bco. Crédito | K171: 2018
A172: Plaza Norte | B172: Lunes | C172: 323 | D172: 78 | E172: 144 | F172: 848 | G172: 483 | H172: Callao | I172: Marco | J172: TC. Metro | K172: 1876
A173: Lago Plaza | B173: Sábado | C173: 334 | D173: 64 | E173: 147 | F173: 820 | G173: 499 | H173: Ate | I173: Marco | J173: TC. Metro | K173: 1864
A174: Plaza Norte | B174: Martes | C174: 253 | D174: 59 | E174: 174 | F174: 903 | G174: 456 | H174: Ate | I174: Marco | J174: TC. Metro | K174: 1845
A175: Lago Plaza | B175: Jueves | C175: 274 | D175: 68 | E175: 137 | F175: 923 | G175: 560 | H175: Ate | I175: Gissela | J175: TC. Metro | K175: 1962
A176: Dino's Market | B176: Martes | C176: 310 | D176: 73 | E176: 128 | F176: 829 | G176: 517 | H176: Atocongo | I176: Gissela | J176: TC. Bco. Wiese | K176: 1857
A177: Dino's Market | B177: Viernes | C177: 301 | D177: 79 | E177: 122 | F177: 967 | G177: 505 | H177: Callao | I177: Marco | J177: Efectivo | K177: 1974
A178: Centro Plaza | B178: Jueves | C178: 254 | D178: 63 | E178: 144 | F178: 904 | G178: 554 | H178: Callao | I178: Otto | J178: TC. Bco. Wiese | K178: 1919
A179: Dino's Market | B179: Sábado | C179: 301 | D179: 73 | E179: 165 | F179: 945 | G179: 460 | H179: Callao | I179: Otto | J179: Efectivo | K179: 1944
A180: Plaza Norte | B180: Viernes | C180: 294 | D180: 75 | E180: 126 | F180: 903 | G180: 489 | H180: Callao | I180: Otto | J180: TC. Bco. Wiese | K180: 1887
A181: Assian Food | B181: Jueves | C181: 255 | D181: 63 | E181: 159 | F181: 848 | G181: 486 | H181: Atocongo | I181: Gissela | J181: TC Bco. Crédito | K181: 1811
A182: Plaza Norte | B182: Sábado | C182: 330 | D182: 73 | E182: 123 | F182: 978 | G182: 544 | H182: Los Olivos | I182: Otto | J182: Efectivo | K182: 2048
A183: Centro Plaza | B183: Jueves | C183: 340 | D183: 58 | E183: 148 | F183: 976 | G183: 558 | H183: Los Olivos | I183: Otto | J183: TC Bco. Crédito | K183: 2080
A184: Plaza Norte | B184: Martes | C184: 283 | D184: 68 | E184: 172 | F184: 886 | G184: 521 | H184: Atocongo | I184: Yaco | J184: TC Bco. Crédito | K184: 1930
A185: Plaza Norte | B185: Jueves | C185: 281 | D185: 63 | E185: 145 | F185: 855 | G185: 482 | H185: Ate | I185: Gissela | J185: TC Bco. Crédito | K185: 1826
A186: Lago Plaza | B186: Lunes | C186: 309 | D186: 59 | E186: 169 | F186: 853 | G186: 471 | H186: Los Olivos | I186: Gissela | J186: TC. Bco. Wiese | K186: 1861
A187: Dino's Market | B187: Jueves | C187: 319 | D187: 55 | E187: 169 | F187: 896 | G187: 468 | H187: Atocongo | I187: Otto | J187: TC. Bco. Wiese | K187: 1907
A188: Dino's Market | B188: Lunes | C188: 348 | D188: 60 | E188: 121 | F188: 969 | G188: 558 | H188: Atocongo | I188: Marco | J188: TC. Metro | K188: 2056
A189: Lago Plaza | B189: Viernes | C189: 350 | D189: 60 | E189: 178 | F189: 934 | G189: 495 | H189: Atocongo | I189: Isabel | J189: TC. Bco. Wiese | K189: 2017
A190: Lago Plaza | B190: Miércoles | C190: 254 | D190: 51 | E190: 162 | F190: 866 | G190: 533 | H190: Callao | I190: Marco | J190: TC. Bco. Wiese | K190: 1866
A191: Lago Plaza | B191: Lunes | C191: 349 | D191: 66 | E191: 151 | F191: 972 | G191: 556 | H191: Ate | I191: Yaco | J191: TC. Metro | K191: 2094
A192: Lago Plaza | B192: Martes | C192: 314 | D192: 74 | E192: 136 | F192: 820 | G192: 461 | H192: Atocongo | I192: Báslavi | J192: TC. Metro | K192: 1805
A193: Assian Food | B193: Miércoles | C193: 271 | D193: 72 | E193: 176 | F193: 884 | G193: 545 | H193: Atocongo | I193: Báslavi | J193: TC Bco. Crédito | K193: 1948
A194: Dino's Market | B194: Martes | C194: 315 | D194: 66 | E194: 174 | F194: 937 | G194: 511 | H194: Ate | I194: Isabel | J194: TC Bco. Crédito | K194: 2003
A195: Lago Plaza | B195: Lunes | C195: 317 | D195: 57 | E195: 167 | F195: 858 | G195: 555 | H195: Callao | I195: Isabel | J195: TC. Metro | K195: =SUM(C195:G195) -> 1954
A196: Plaza Norte | B196: Lunes | C196: 252 | D196: 60 | E196: 155 | F196: 945 | G196: 488 | H196: Ate | I196: Marco | J196: TC Bco. Crédito | K196: 1900
A197: Dino's Market | B197: Jueves | C197: 309 | D197: 51 | E197: 165 | F197: 900 | G197: 483 | H197: Atocongo | I197: Báslavi | J197: TC. Bco. Wiese | K197: 1908
A198: Dino's Market | B198: Jueves | C198: 322 | D198: 58 | E198: 166 | F198: 941 | G198: 560 | H198: Atocongo | I198: Báslavi | J198: TC Bco. Crédito | K198: 2047
A199: Assian Food | B199: Sábado | C199: 330 | D199: 68 | E199: 127 | F199: 891 | G199: 490 | H199: Callao | I199: Otto | J199: TC. Metro | K199: 1906
A200: Assian Food | B200: Martes | C200: 258 | D200: 64 | E200: 155 | F200: 878 | G200: 517 | H200: Atocongo | I200: Otto | J200: TC. Metro | K200: 1872
... 1047 more rows

Sheet Macro 07 Consolidar
F11: El libro a consolidar debe estar abierto
